Workbook

Sheet INICIO
B11: PLANTILLA PARA EL ANÁLISIS MULTICRITERIO DE VALOR POR DINERO EN ESPAÑA

Sheet DESCRIPCIÓN PROYECTO
D11: DESCRIPCIÓN PROYECTO
C12: DP1 | D12: NOMBRE
C13: DP2 | D13: SECTOR
C14: DP3 | D14: ENTIDAD CONTRATANTE
C15: DP4 | D15: TIPO DE CONTRATO
C16: DP5 | D16: ALCANCE
C17: DP6 | D17: INVERSIÓN (EUR millones)
C18: DP7 | D18: MECANISMO DE PAGO
C19: DP8 | D19: PLAZO (años)

Sheet CRITERIOS VIABILIDAD LEGAL
C8: =+IF(SUM(E16:E17)<2,"El Proyecto no cumple con los requisitos mínimos legales para ser desarrollado bajo la vía concesional.","El Proyecto cumple con los requisitos mínimos legales para ser desarrollado bajo la vía concesional.") -> El Proyecto cumple con los requisitos mínimos legales para ser desarrollado bajo la vía concesional.
D15: =+Parámetros!B18 -> CRITERIOS VIABILIDAD LEGAL | E15: VALORACIÓN (SI=1 - NO=0)
D16: =+Parámetros!D19 -> Compatibilidad con el marco regulatorio vigente y las restricciones regulatorias sectoriales | E16: 1
D17: =+Parámetros!D21 -> Facultades legales de la entidad contratante para estructurar y adjudicar el contrato | E17: 1

Sheet CRITERIOS MCA
C9: =+IF($C$26=Parámetros!B$53,Parámetros!$B$51,"") -> 
C15: =+IF(OR(F25=1,F26=1,F27=1,F28=1,F29=1),"El Proyecto no cumple con los requisitos mínimos para ser desarrollado bajo la vía concesional","El Proyecto cumple con los requisitos mínimos para ser desarrollado bajo la vía concesional") -> El Proyecto cumple con los requisitos mínimos para ser desarrollado bajo la vía concesional
D24: CRITERIO | F24: Puntuación (1:Bajo;3:Medio; 5: Alto) | G24: PONDERACIÓN | H24: VALORACIÓN NORMALIZADA
C25: =+Parámetros!B24 -> CR1 | D25: =+Parámetros!D24 -> Riesgos legales y otros riesgos de carácter regulatorio | E25: =+IF($F25=0,"",IF(AND(C25=Parámetros!B24,'CRITERIOS MCA'!F25=Parámetros!G24),Parámetros!E24,IF(AND(C25=Parámetros!B24,'CRITERIOS MCA'!F25=Parámetros!G25),Parámetros!E25,Parámetros!E26))) -> Se identifican algunos riesgos regulatorios o normativos que podrían generar incertidumbre en la implementación del proyecto, pero que pueden ser gestionados o mitigados. Es posible que se requiera la interpretación de determinadas normativas sectoriales, sin que éstas impliquen modificaciones legislativas complejas. Existen precedentes de proyectos similares, aunque con ciertas restricciones o ajustes en su aplicación. | F25: 2 | G25: =+Parámetros!$H24 -> 0.07 | H25: =+IF(F25>0,(F25-1)/2*100*Parámetros!H24,0) -> 3.5
C26: =+IF('DESCRIPCIÓN PROYECTO'!$E$17>=100,Parámetros!$B$53,Parámetros!B27) -> CR2 | D26: =+Parámetros!D27 -> Potencial de transferencia eficiente del riesgo y nivel global de rentabilidad previsto. | E26: =+IF($F26=0,"",IF('DESCRIPCIÓN PROYECTO'!$E$17>=100,IF(AND(C26=Parámetros!B53,'CRITERIOS MCA'!F26=Parámetros!G53),Parámetros!E53,IF(AND(C26=Parámetros!B53,'CRITERIOS MCA'!F26=Parámetros!G54),Parámetros!E54,Parámetros!E55)),IF(AND(C26=Parámetros!B27,'CRITERIOS MCA'!F26=Parámetros!G27),Parámetros!E27,IF(AND(C26=Parámetros!B27,'CRITERIOS MCA'!F26=Parámetros!G28),Parámetros!E28,Parámetros!E29)))) -> Las características del proyecto permiten que la mayoría de los riesgos del proyecto sean asignados de manera eficiente al concesionario, logrando un esquema de incentivos que optimiza la gestión de costes y plazos. Los riesgos retenidos por la entidad contratante son los riesgos que puede gestionar de manera más eficiente. La asignación de riesgos también se ajusta a las buenas prácticas internacionales. | F26: 3 | G26: =+Parámetros!$H27 -> 0.21 | H26: =+IF(F26>0,(F26-1)/2*100*Parámetros!H27,0) -> 21
C27: =+Parámetros!B30 -> CR3 | D27: =+Parámetros!D30 -> Capacidad o preparación de la entidad contratante para la implementación y gestión del proyecto | E27: =+IF($F27=0,"",IF(AND(C27=Parámetros!B30,'CRITERIOS MCA'!F27=Parámetros!G30),Parámetros!E30,IF(AND(C27=Parámetros!B30,'CRITERIOS MCA'!F27=Parámetros!G31),Parámetros!E31,Parámetros!E32))) -> La entidad contratante no cuenta con un equipo especializado en la ejecución y el seguimiento de los proyectos desarrollados bajo la vía concesional, pero cuenta con acceso asistencia técnica experimentada (proporcional a la complejidad del proyecto) para administrar el contrato durante su vigencia, una comprensión realista de los costes involucrados y los presupuestos disponibles para financiarlo. | F27: 2 | G27: =+Parámetros!$H30 -> 0.13 | H27: =+IF(F27>0,(F27-1)/2*100*Parámetros!H30,0) -> 6.5
C28: =+Parámetros!B33 -> CR4 | D28: =+IF('DESCRIPCIÓN PROYECTO'!$E$15= "Concesión de Obras",Parámetros!D33, "Criterio no aplica para Concesión de Servicios") -> Criterio no aplica para Concesión de Servicios | E28: =++IF('DESCRIPCIÓN PROYECTO'!$E$15="Concesión de Obras",IF($F28=0,"",IF(AND(C28=Parámetros!B33,'CRITERIOS MCA'!F28=Parámetros!G33),Parámetros!E33,IF(AND(C28=Parámetros!B33,'CRITERIOS MCA'!F28=Parámetros!G34),Parámetros!E34,Parámetros!E35))),"Criterio no aplica para Concesión de Servicios") -> Criterio no aplica para Concesión de Servicios | F28: 2 | G28: =+IF('DESCRIPCIÓN PROYECTO'!$E$15= "Concesión de Obras",Parámetros!$H33, "Criterio no aplica para Concesión de Servicios") -> Criterio no aplica para Concesión de Servicios | H28: =+IF('DESCRIPCIÓN PROYECTO'!$E$15= "Concesión de Obras",+IF(F28>0,((F28-1)/2)*100*Parámetros!H33,0), "Criterio no aplica para Concesión de Servicios") -> Criterio no aplica para Concesión de Servicios
C29: =+Parámetros!B36 -> CR5 | D29: =+Parámetros!D36 -> Competencia e interés de los inversores | E29: =+IF($F29=0,"",IF(AND(C29=Parámetros!B36,'CRITERIOS MCA'!F29=Parámetros!G36),Parámetros!E36,IF(AND(C29=Parámetros!B36,'CRITERIOS MCA'!F29=Parámetros!G37),Parámetros!E37,Parámetros!E38))) -> Existen evidencias de interés moderado por parte del mercado, con al menos 3 potenciales oferentes identificados con capacidad para entregar el proyecto bajo un esquema concesional. Existe un historial de licitaciones anteriores con una participación aceptable. | F29: 2 | G29: =+Parámetros!$H36 -> 0.19 | H29: =+IF(F29>0,((F29-1)/2)*100*Parámetros!H36,0) -> 9.5
C30: =+Parámetros!B39 -> CR6 | D30: =+Parámetros!D39 -> Tamaño del Proyecto | E30: =+IF($F30=0,"",IF(AND(C30=Parámetros!B39,'CRITERIOS MCA'!F30=Parámetros!G39),Parámetros!E39,IF(AND(C30=Parámetros!B39,'CRITERIOS MCA'!F30=Parámetros!G40),Parámetros!E40,Parámetros!E41))) -> El valor del contrato permite capturar completamente las eficiencias asociadas con la vía concesional. El proyecto es considerado atractivo para el mercado, con precedentes exitosos a nivel regional o internacional que respaldan su viabilidad y bancabilidad. | F30: 3 | G30: =+Parámetros!$H39 -> 0.07 | H30: =+IF(F30>0,((F30-1)/2)*100*Parámetros!H39,0) -> 7
C31: =+Parámetros!B42 -> CR7 | D31: =+Parámetros!D42 -> Estabilidad a largo plazo de las necesidades de servicio | E31: =+IF($F$31=0,"",IF(AND(C31=Parámetros!B42,'CRITERIOS MCA'!F31=Parámetros!G42),Parámetros!E42,IF(AND(C31=Parámetros!B42,'CRITERIOS MCA'!F31=Parámetros!G43),Parámetros!E43,Parámetros!E44))) -> La necesidad de servicio durante el plazo de la concesión es razonablemente predecible y se espera que permanezca relativamente estable. El contrato permite cierto margen de maniobra para gestionar ajustes a los términos de servicio, a través de mecanismos que pueden ser adecuados para cambios menores. Sin embargo, cambios sustanciales en las necesidades del servicio podrían generar costes significativos o requerir procesos de renegociación con cierto grado de complejidad. | F31: 2 | G31: =+Parámetros!$H42 -> 0.07 | H31: =+IF(F31>0,((F31-1)/2)*100*Parámetros!H42,0) -> 3.5
C32: =+Parámetros!B45 -> CR8 | D32: =+Parámetros!D45 -> Eficiencias relacionadas con el tiempo | E32: =+IF($F32=0,"",IF(AND(C32=Parámetros!B45,'CRITERIOS MCA'!F32=Parámetros!G45),Parámetros!E45,IF(AND(C32=Parámetros!B45,'CRITERIOS MCA'!F32=Parámetros!G46),Parámetros!E46,Parámetros!E47))) -> La vía concesional permite una reducción significativa del tiempo de prestación de servicios y/o un menor riesgo de retrasos debidos a los incentivos al pago por desempeño en el contrato de concesión y/o a la movilización de financiación privada, mientras que la financiación pública del proyecto bajo contratación tradicional puede no estar disponible o sufrir demoras. El diseño contractual incluye mecanismos efectivos para gestionar el riesgo de retrasos en la construcción, así como incentivos claros para cumplir con los plazos. La disponibilidad temprana del servicio genera valor económico y social. | F32: 3 | G32: =+Parámetros!$H45 -> 0.13 | H32: =+IF(F32>0,((F32-1)/2)*100*Parámetros!H45,0) -> 13
C33: =+Parámetros!B48 -> CR9 | D33: =+Parámetros!D48 -> Capacidad de definición de resultados objetivos y medibles (outputs de servicio) | E33: =+IF($F33=0,"",IF(AND(C33=Parámetros!B48,'CRITERIOS MCA'!F33=Parámetros!G48),Parámetros!E48,IF(AND(C33=Parámetros!B48,'CRITERIOS MCA'!F33=Parámetros!G49),Parámetros!E49,Parámetros!E50))) -> Los estándares de desempeño están claramente definidos y se pueden medir con indicadores objetivos. Existen mecanismos de pago bien estructurados y basados en el desempeño, que incluyen incentivos y penalizaciones que alinean los intereses del concesionario con la calidad del servicio. Se han identificado múltiples precedentes exitosos de proyectos dentro del país o en la región. | F33: 3 | G33: =+Parámetros!$H48 -> 0.13 | H33: =+IF(F33>0,((F33-1)/2)*100*Parámetros!H48,0) -> 13
C36: =+IFERROR(IF($C$15="El Proyecto cumple con los requisitos mínimos para ser desarrollado bajo la vía concesional",CONCATENATE("PUNTUACIÓN TOTAL ",Parámetros!B23," ",,ROUND(SUMPRODUCT(H25:H33),2)),"El Proyecto no cumple con los requisitos mínimos para ser desarrollado bajo la vía concesional"),"") -> PUNTUACIÓN TOTAL PREPARACIÓN DEL PROYECTO 77

Sheet RESULTADO
C7: 1 - DESCRIPCIÓN Y ELEGIBILIDAD
C10: =+'DESCRIPCIÓN PROYECTO'!D11 -> DESCRIPCIÓN PROYECTO
C11: =+'DESCRIPCIÓN PROYECTO'!C12 -> DP1 | D11: =+'DESCRIPCIÓN PROYECTO'!D12 -> NOMBRE
C12: =+'DESCRIPCIÓN PROYECTO'!C13 -> DP2 | D12: =+'DESCRIPCIÓN PROYECTO'!D13 -> SECTOR
C13: =+'DESCRIPCIÓN PROYECTO'!C14 -> DP3 | D13: =+'DESCRIPCIÓN PROYECTO'!D14 -> ENTIDAD CONTRATANTE
C14: =+'DESCRIPCIÓN PROYECTO'!C15 -> DP4 | D14: =+'DESCRIPCIÓN PROYECTO'!D15 -> TIPO DE CONTRATO
C15: =+'DESCRIPCIÓN PROYECTO'!C16 -> DP5 | D15: =+'DESCRIPCIÓN PROYECTO'!D16 -> ALCANCE
C16: =+'DESCRIPCIÓN PROYECTO'!C17 -> DP6 | D16: =+'DESCRIPCIÓN PROYECTO'!D17 -> INVERSIÓN (EUR millones)
C17: =+'DESCRIPCIÓN PROYECTO'!C18 -> DP7 | D17: =+'DESCRIPCIÓN PROYECTO'!D18 -> MECANISMO DE PAGO
C18: =+'DESCRIPCIÓN PROYECTO'!C19 -> DP8 | D18: =+'DESCRIPCIÓN PROYECTO'!D19 -> PLAZO (años)
C20: =+'CRITERIOS VIABILIDAD LEGAL'!D15 -> CRITERIOS VIABILIDAD LEGAL
C21: =+'CRITERIOS VIABILIDAD LEGAL'!C16 -> 0 | D21: =+'CRITERIOS VIABILIDAD LEGAL'!D16 -> Compatibilidad con el marco regulatorio vigente y las restricciones regulatorias sectoriales
C22: =+'CRITERIOS VIABILIDAD LEGAL'!C17 -> 0 | D22: =+'CRITERIOS VIABILIDAD LEGAL'!D17 -> Facultades legales de la entidad contratante para estructurar y adjudicar el contrato
C23: ELEGIBILDIAD PROYECTO | E23: =+IF(SUM(E21:E22)=2,"Si","No") -> No
C25: 2 - CRITERIOS MCA
C27: =+Parámetros!B23 -> PREPARACIÓN DEL PROYECTO
C28: =+'CRITERIOS MCA'!C25 -> CR1 | D28: =+'CRITERIOS MCA'!D25 -> Riesgos legales y otros riesgos de carácter regulatorio
C29: =+'CRITERIOS MCA'!C26 -> CR2 | D29: =+'CRITERIOS MCA'!D26 -> Potencial de transferencia eficiente del riesgo y nivel global de rentabilidad previsto.
C30: =+'CRITERIOS MCA'!C27 -> CR3 | D30: =+'CRITERIOS MCA'!D27 -> Capacidad o preparación de la entidad contratante para la implementación y gestión del proyecto
C31: =+'CRITERIOS MCA'!C28 -> CR4 | D31: =+'CRITERIOS MCA'!D28 -> Criterio no aplica para Concesión de Servicios
C32: =+'CRITERIOS MCA'!C29 -> CR5 | D32: =+'CRITERIOS MCA'!D29 -> Competencia e interés de los inversores
C33: =+'CRITERIOS MCA'!C30 -> CR6 | D33: =+'CRITERIOS MCA'!D30 -> Tamaño del Proyecto
C34: =+'CRITERIOS MCA'!C31 -> CR7 | D34: =+'CRITERIOS MCA'!D31 -> Estabilidad a largo plazo de las necesidades de servicio
C35: =+'CRITERIOS MCA'!C32 -> CR8 | D35: =+'CRITERIOS MCA'!D32 -> Eficiencias relacionadas con el tiempo
C36: =+'CRITERIOS MCA'!C33 -> CR9 | D36: =+'CRITERIOS MCA'!D33 -> Capacidad de definición de resultados objetivos y medibles (outputs de servicio)
D37: Total | E37: =+IF(SUM(E28:E36)>0,SUM(E28:E36),"") -> 
C39: VALORACIÓN DEL PROYECTO | E39: =+IF(E23="Si",E37,"N/A") -> N/A
C41: UMBRAL MÍNIMO (+60 puntos) | E41: =+IF(AND(E39>=60,E39<>"N/A"),"PASA","NO PASA") -> NO PASA

Sheet Parámetros
C17: SUBCATEGORIA | D17: CRITERIO | E17: DESCRIPCIÓN | F17: VALORACIÓN (DESCRIPCIÓN REDUCIDA) | G17: PUNTAJE | H17: PONDERACIÓN
B18: CRITERIOS VIABILIDAD LEGAL | H18: P. Estándar
B19: CE1.1 | C19: Viabilidad Legal | D19: Compatibilidad con el marco regulatorio vigente y las restricciones regulatorias sectoriales | E19: El proyecto cumple con el marco normativo vigente, incluyendo su compatibilidad con la normativa sectorial vigente. Además, cuenta con claros precedentes que respaldan la idoneidad propuesta bajo la vía concesional. | F19: CUMPLE | G19: 1 | H19: N/A
E20: El proyecto requiere modificaciones legislativas considerables o se enfrenta a barreras regulatorias que lo hacen imposible en la actualidad para implementarlo bajo la vía concesional. | F20: NO CUMPLE | G20: 0
B21: CE1.2 | D21: Facultades legales de la entidad contratante para estructurar y adjudicar el contrato | E21: La entidad contratante tiene plenos poderes legales para estructurar, adjudicar y ejecutar el contrato de concesión. No se requieren modificaciones reglamentarias ni trámites administrativos adicionales para la atribución de competencias. | F21: CUMPLE | G21: 1 | H21: N/A
E22: La entidad contratante no tiene las facultades necesarias para estructurar y adjudicar el contrato de concesión. Para la atribución de competencias se requiere la tramitación de procedimientos administrativos previos o existe incertidumbre sobre la viabilidad de dicho proceso. | F22: NO CUMPLE | G22: 0
B23: PREPARACIÓN DEL PROYECTO
B24: CR1 | C24: Viabilidad Legal | D24: Riesgos legales y otros riesgos de carácter regulatorio | E24: Existen barreras o riesgos regulatorios significativos que pueden comprometer la viabilidad del proyecto. Se requieren reformas legales o aprobaciones especiales y su obtención no está garantizada a corto plazo. No hay precedentes claros en el país o en el sector, o bien existen antecedentes de conflictos legales en proyectos similares. | F24: N/A | G24: 1 | H24: =+IF('DESCRIPCIÓN PROYECTO'!$E$15= "Concesión de Obras", 6%,7%) -> 0.07
E25: Se identifican algunos riesgos regulatorios o normativos que podrían generar incertidumbre en la implementación del proyecto, pero que pueden ser gestionados o mitigados. Es posible que se requiera la interpretación de determinadas normativas sectoriales, sin que éstas impliquen modificaciones legislativas complejas. Existen precedentes de proyectos similares, aunque con ciertas restricciones o ajustes en su aplicación. | F25: N/A | G25: 2
E26: No se identifican riesgos legales significativos que puedan afectar la ejecución del contrato en el marco del esquema concesional. No se requieren aprobaciones especiales ni modificaciones regulatorias para su desarrollo. | F26: N/A | G26: 3
B27: CR2 | C27: Transferencia de riesgos | D27: Potencial de transferencia eficiente del riesgo y nivel global de rentabilidad previsto. | E27: La asignación de riesgos al concesionario es bastante limitada. La mayoría de los riesgos clave (construcción y explotación) son retenidos por la entidad contratante. | F27: N/A | G27: 1 | H27: =+IF('DESCRIPCIÓN PROYECTO'!$E$15= "Concesión de Obras", 17%,21%) -> 0.21
E28: Es factible transferir un número importante de riesgos, aunque todavía existen algunas dudas sobre la capacidad del concesionario para gestionarlos de manera más eficiente que la entidad contratante. Si bien los beneficios en términos de optimización de costes y tiempo no están claramente identificados, la transferencia de los riesgos asociados es razonablemente justificable y puede generar valor si se introducen medidas de mitigación adecuadas. | F28: N/A | G28: 2
E29: Las características del proyecto permiten que la mayoría de los riesgos del proyecto sean asignados de manera eficiente al concesionario, logrando un esquema de incentivos que optimiza la gestión de costes y plazos. Los riesgos retenidos por la entidad contratante son los riesgos que puede gestionar de manera más eficiente. La asignación de riesgos también se ajusta a las buenas prácticas internacionales. | F29: N/A | G29: 3
B30: CR3 | C30: Definición de resultados de servicio | D30: Capacidad o preparación de la entidad contratante para la implementación y gestión del proyecto | E30: La entidad contratante no cuenta con un equipo especializado en la ejecución y el seguimiento de los proyectos desarrollados bajo la vía concesional, ni tiene acceso (ni presupuesto) de asistencia técnica para la gestión de la licitación y el contrato durante su vigencia. | F30: N/A | G30: 1 | H30: =+IF('DESCRIPCIÓN PROYECTO'!$E$15= "Concesión de Obras", 11%,13%) -> 0.13
E31: La entidad contratante no cuenta con un equipo especializado en la ejecución y el seguimiento de los proyectos desarrollados bajo la vía concesional, pero cuenta con acceso asistencia técnica experimentada (proporcional a la complejidad del proyecto) para administrar el contrato durante su vigencia, una comprensión realista de los costes involucrados y los presupuestos disponibles para financiarlo. | F31: N/A | G31: 2
E32: La entidad contratante cuenta con un equipo especializado en la implementación y supervisión de proyectos desarrollados bajo el esquema de concesión, con experiencia en el desarrollo de proyectos concesionales, tiene una buena comprensión de sus necesidades en cuanto al apoyo externo especializado y los presupuestos para financiarlo. | F32: N/A | G32: 3
B33: CR4 | C33: Eficiencia en la gestión | D33: Eficiencias mediante la gestión de costes a lo largo de todo el ciclo de vida, fomentando la innovación y maximizando la calidad y la resiliencia operativa de la infraestructura | E33: Hay oportunidades limitadas para generar incentivos de eficiencia a lo largo del ciclo de vida del proyecto. La capacidad para maximizar la calidad y la resiliencia es reducida, y los beneficios en términos de eficiencia son mínimos. No se espera que el plazo propuesto de la concesión cubra un período de mantenimiento mayor. | F33: N/A | G33: 1 | H33: =+IF('DESCRIPCIÓN PROYECTO'!$E$15= "Concesión de Obras", 16%,0%) -> 0
E34: La estructura contractual basada en el ciclo de vida a largo plazo permite cierto margen para generar incentivos de eficiencia en costes. Existe potencial para introducir mejoras en diseño, materiales o procesos operativos que contribuyan a una mayor resiliencia de la infraestructura y al cumplimiento de los estándares de calidad. El plazo propuesto de la concesión cubre al menos un período de mantenimiento mayor. | F34: N/A | G34: 2
E35: La estructura contractual proporciona incentivos significativos para maximizar la eficiencia de costes durante el ciclo de vida del proyecto. La capacidad de maximizar la calidad y la resiliencia es alta, y los beneficios en términos de eficiencia son sustanciales. | F35: N/A | G35: 3
B36: CR5 | C36: Competencia e interés de los inversores | D36: Competencia e interés de los inversores | E36: El interés del mercado es limitado, ya que no se han identificado posibles oferentes que puedan tener la capacidad de ejecutar el proyecto bajo la vía concesional. Existen precedentes de proyectos similares con baja participación en licitaciones. | F36: N/A | G36: 1 | H36: =+IF('DESCRIPCIÓN PROYECTO'!$E$15= "Concesión de Obras", 16%,19%) -> 0.19
E37: Existen evidencias de interés moderado por parte del mercado, con al menos 3 potenciales oferentes identificados con capacidad para entregar el proyecto bajo un esquema concesional. Existe un historial de licitaciones anteriores con una participación aceptable. | F37: N/A | G37: 2
E38: Existen evidencias de un gran interés en el mercado, con al menos 5 oferentes que tienen experiencia en esquemas de concesiones comparables anteriores similares. | F38: N/A | G38: 3
B39: CR6 | C39: Tamaño del Proyecto | D39: Tamaño del Proyecto | E39: El valor del contrato es muy bajo [inferior a 20 millones de euros] o [superior a 1 billón de euros], lo que puede dificultar su estructuración bajo la vía concesional. La capacidad de capturar eficiencias a través de este modelo es limitada. | F39: N/A | G39: 1 | H39: =+IF('DESCRIPCIÓN PROYECTO'!$E$15= "Concesión de Obras", 6%,7%) -> 0.07
E40: El valor del contrato se encuentra dentro de un rango aceptable, pero la complejidad del proyecto es tal que sus costes de preparación, adquisición o gestión del contrato pueden ser más altos de lo habitual. Sin embargo, se espera que el proyecto pueda captar las eficiencias del esquema concesional, siempre que cuente con una estructura financiera adecuada y se den condiciones de mercado favorables. | F40: N/A | G40: 2
E41: El valor del contrato permite capturar completamente las eficiencias asociadas con la vía concesional. El proyecto es considerado atractivo para el mercado, con precedentes exitosos a nivel regional o internacional que respaldan su viabilidad y bancabilidad. | F41: N/A | G41: 3
B42: CR7 | C42: Estabilidad a largo plazo | D42: Estabilidad a largo plazo de las necesidades de servicio | E42: La naturaleza y/o las necesidades del servicio a lo largo de la duración del contrato son inciertos. Si bien el proyecto podría seguir siendo viable bajo la vía concesional, considerando los requisitos actuales de servicio, esta debilidad implica que el contrato podría requerir cambios significativos durante su vigencia, lo que podría afectar su eficiencia y atractivo tanto para el mercado como para la entidad contratante. | F42: N/A | G42: 1 | H42: =+IF('DESCRIPCIÓN PROYECTO'!$E$15= "Concesión de Obras", 6%,7%) -> 0.07
E43: La necesidad de servicio durante el plazo de la concesión es razonablemente predecible y se espera que permanezca relativamente estable. El contrato permite cierto margen de maniobra para gestionar ajustes a los términos de servicio, a través de mecanismos que pueden ser adecuados para cambios menores. Sin embargo, cambios sustanciales en las necesidades del servicio podrían generar costes significativos o requerir procesos de renegociación con cierto grado de complejidad. | F43: N/A | G43: 2
E44: No se espera que las necesidades de servicio cambien significativamente durante el plazo de la concesión. El contrato permite cambios en los requisitos de servicio hasta cierto punto sin incurrir en costes desproporcionados ni comprometer su estabilidad. Existen mecanismos contractuales claros y eficientes, que cumplen con la contratación pública, para incorporar cambios de pequeño a mediano nivel en los requisitos de servicio o en el alcance del proyecto. Existen evidencias sustantivas de estudios o precedentes de proyectos similares a nivel nacional o regional. | F44: N/A | G44: 3
B45: CR8 | C45: Eficiencias relacionadas con el tiempo | D45: Eficiencias relacionadas con el tiempo | E45: Es probable que el diseño contractual bajo la vía concesional retrase los tiempos de entrega del servicio debido a la complejidad del proyecto. Aunque puede lograrse cierta eficiencia después de la adjudicación, se prevé que el plazo general será más largo que en la contratación tradicional, lo que limitará las ventajas relacionadas con el tiempo de la vía concesional. Los retrasos en el tiempo también pueden tener un coste económico y social significativo. | F45: N/A | G45: 1 | H45: =+IF('DESCRIPCIÓN PROYECTO'!$E$15= "Concesión de Obras", 11%,13%) -> 0.13
E46: Si bien la preparación de un proyecto bajo la vía concesional puede llevar más tiempo, se esperan ciertos ahorros de tiempo después de la adjudicación del contrato ya sea por una gestión más eficiente de los riesgos de construcción o a un acceso más ágil a la financiación. Los beneficios en términos de reducción de plazos son relevantes, aunque no llegan a ser significativos. | F46: N/A | G46: 2
E47: La vía concesional permite una reducción significativa del tiempo de prestación de servicios y/o un menor riesgo de retrasos debidos a los incentivos al pago por desempeño en el contrato de concesión y/o a la movilización de financiación privada, mientras que la financiación pública del proyecto bajo contratación tradicional puede no estar disponible o sufrir demoras. El diseño contractual incluye mecanismos efectivos para gestionar el riesgo de retrasos en la construcción, así como incentivos claros para cumplir con los plazos. La disponibilidad temprana del servicio genera valor económico y social. | F47: N/A | G47: 3
B48: CR9 | C48: Capacidad de la entidad contratante de gestionar el proyecto | D48: Capacidad de definición de resultados objetivos y medibles (outputs de servicio) | E48: La naturaleza de los servicios y los estándares de desempeño requeridos dificultan su expresión en términos de resultados medibles. Existen serias dudas sobre la posibilidad de incorporar indicadores objetivos en el contrato de concesión. Las expectativas de la entidad contratante se definen en gran medida en términos de insumos. | F48: N/A | G48: 1 | H48: =+IF('DESCRIPCIÓN PROYECTO'!$E$15= "Concesión de Obras", 11%,13%) -> 0.13
E49: Se prevé que los estándares desempeño puedan estar definidos y medirse objetivamente en el contrato. Se han identificado algunos precedentes en proyectos similares en la región o a nivel internacional. | F49: N/A | G49: 2
E50: Los estándares de desempeño están claramente definidos y se pueden medir con indicadores objetivos. Existen mecanismos de pago bien estructurados y basados en el desempeño, que incluyen incentivos y penalizaciones que alinean los intereses del concesionario con la calidad del servicio. Se han identificado múltiples precedentes exitosos de proyectos dentro del país o en la región. | F50: N/A | G50: 3
B51: Atención: Para el análisis del CR2. Potencial de tranferencia eficiente del riesgo y nivel global de rentabilidad previsto, use la herramienta del CPP para cálcular el Valor por Dinero.
B52: Análisis de VpD en proyectos de mayor tamaño
B53: CR2.1 | C53: Transferencia de riesgos | D53: Potencial de transferencia eficiente del riesgo y nivel global de rentabilidad previsto. | E53: El VpD es negativo en más de un -10% CSP y las principales sensibilidades no llegan a poder compensar esa brecha. Algunas sensibilidades permiten reducir sustancialmente la brecha, pero no llegan a valores positivos en la mayoría de los escenarios. | F53: N/A | G53: 1 | H53: =+IF('DESCRIPCIÓN PROYECTO'!$E$15= "Concesión de Obras", 16%,0%) -> 0
E54: El VpD está entre 0% y -10% CSP, y las principales sensibilidades ofrecen escenarios de valor positivo. Aunque el VpD es negativo, las sensibilidades refuerzan estos resultados y muestran una posibilidad de mejora. | F54: N/A | G54: 2
E55: El VpD es positivo, mayor a 0% CSP, y las sensibilidades refuerzan estos resultados. Las sensibilidades no muestran una alta probabilidad de que los resultados puedan ser materialmente menores, indicando una alta viabilidad. | F55: N/A | G55: 3

Sheet CPP
B11: HERRAMIENTA DE TRABAJO PARA EL ANÁLISIS DEL COMPARADOR PÚBLICO - PRIVADO (CPP)

Sheet Guía
A1: Proyecto Ejemplo Residuos
A2: Valor por Dinero - Comparador Público Privado
B6: El Comparador Público Privado (CPP), es la metodología que se emplea para obtener el VpD cuantitativo, por la cual se compara el coste en el que incurriría la entidad contratante para desarrollar un proyecto bajo modalidad de contratación de obra pública a través del Comparador del Sector Público (CSP) frente al coste en el que incurriría para desarrollar el mismo proyecto bajo la vía concesional. En este contexto, a continuación se detalla el funcionamiento de la herramienta, con el fin de facilitar su correcta utilización:
B14: Pestañas
B16: Inputs
B18: En esta pestaña se recopilan todas las hipótesis temporales, macroeconómicas, de Capex, Opex, Mantenimiento Mayor, Ingresos e Impuestos, con el fin de que sean incorporadas por el usuario de la guía en las celdas correspondientes, identificadas según la siguiente tipología.
B20: Inputs | C20: Xxx
B22: VpD
B24: En esta pestaña se presentan todos los cálculos efectuados para la obtención del Valor por Dinero (VpD) cuantitativo, así como los resultados obtenidos, los gráficos asociados y los posibles análisis de sensibilidad.
B26: Todas aquellas celdas que presenten este formato indican que su contenido proviene de la pestaña de Inputs.
B28: Celda | C28: Xxx
B30: Otras
B32: Del mismo modo, en ambas pestañas se incluyen notas aclaratorias con el siguiente formato, con el objetivo de facilitar la comprensión por parte del usuario de la herramienta.
B34: Nota: XXX
B36: Todas aquellas celdas que presenten este formato indican que su contenido es un sumatorio total.
B38: Celda | C38: Xxx

Sheet Inputs
A1: Proyecto Ejemplo Residuos
A2: Valor por Dinero - Comparador Público Privado
A3: Cifras en millones de Euros
B5: Año | H5: =+YEAR(H6) -> 2025 | I5: =+YEAR(I6) -> 2026 | J5: 2027 | K5: 2028 | L5: 2029 | M5: 2030 | N5: 2031 | O5: 2032 | P5: 2033 | Q5: 2034 | R5: 2035 | S5: 2036 | T5: 2037 | U5: 2038 | V5: 2039 | W5: 2040 | X5: 2041 | Y5: 2042 | Z5: 2043 | AA5: 2044 | AB5: 2045 | AC5: 2046 | AD5: 2047 | AE5: 2048 | AF5: 2049 | AG5: 2050 | AH5: 2051 | AI5: 2052 | AJ5: 2053 | AK5: 2054
B6: Fecha Inicio | H6: 2025-01-01 | I6: =+H7+1 -> 2026-01-01 | J6: =+I7+1 -> 2027-01-01 | K6: =+J7+1 -> 2028-01-01 | L6: 2029-01-01 | M6: 2030-01-01 | N6: 2031-01-01 | O6: 2032-01-01 | P6: 2033-01-01 | Q6: 2034-01-01 | R6: 2035-01-01 | S6: 2036-01-01 | T6: 2037-01-01 | U6: 2038-01-01 | V6: 2039-01-01 | W6: 2040-01-01 | X6: 2041-01-01 | Y6: 2042-01-01 | Z6: 2043-01-01 | AA6: 2044-01-01 | AB6: 2045-01-01 | AC6: 2046-01-01 | AD6: 2047-01-01 | AE6: 2048-01-01 | AF6: 2049-01-01 | AG6: 2050-01-01 | AH6: 2051-01-01 | AI6: 2052-01-01 | AJ6: 2053-01-01 | AK6: 2054-01-01
B7: Fecha Fin | H7: =+DATE(YEAR(H6),MONTH(H6)+12,DAY(H6)-1) -> 2025-12-31 | I7: =+DATE(YEAR(I6),MONTH(I6)+12,DAY(I6)-1) -> 2026-12-31 | J7: 2027-12-31 | K7: 2028-12-31 | L7: 2029-12-31 | M7: 2030-12-31 | N7: 2031-12-31 | O7: 2032-12-31 | P7: 2033-12-31 | Q7: 2034-12-31 | R7: 2035-12-31 | S7: 2036-12-31 | T7: 2037-12-31 | U7: 2038-12-31 | V7: 2039-12-31 | W7: 2040-12-31 | X7: 2041-12-31 | Y7: 2042-12-31 | Z7: 2043-12-31 | AA7: 2044-12-31 | AB7: 2045-12-31 | AC7: 2046-12-31 | AD7: 2047-12-31 | AE7: 2048-12-31 | AF7: 2049-12-31 | AG7: 2050-12-31 | AH7: 2051-12-31 | AI7: 2052-12-31 | AJ7: 2053-12-31 | AK7: 2054-12-31
B9: Flags
B11: Hipótesis temporales
B12: Inicio Modelo | C12: fecha | D12: 2025-01-01
B13: Plazo Proyecto | C13: años | D13: =+YEAR(D14)-YEAR(D12)+1 -> 25
B14: Fin Proyecto | C14: fecha | D14: =+D24 -> 2049-12-31
B15: Inicio Preconstrucción | C15: fecha | D15: =D12 -> 2025-01-01
B16: Plazo Preconstrucción | C16: meses | D16: 12
B17: Fin Preconstrucción | C17: fecha | D17: =+DATE(YEAR(D15),MONTH(D15)+D16,DAY(D15)-1) -> 2025-12-31
B18: Inicio Construcción | C18: fecha | D18: =+D17+1 -> 2026-01-01
B19: Plazo Construcción | C19: años | D19: 2
B20: Fin Construcción | C20: fecha | D20: =+DATE(YEAR(D18)+D19,MONTH(D18),DAY(D18)-1) -> 2027-12-31
B21: Mantenimiento Mayor | C21: años | D21: 5
B22: Inicio Operación | C22: fecha | D22: =+D20+1 -> 2028-01-01
B23: Plazo Operación | C23: años | D23: 22
B24: Fin Operación | C24: fecha | D24: =+DATE(YEAR(D22)+D23,MONTH(D22),DAY(D22)-1) -> 2049-12-31
B26: =+"Flag"&" "&B16 -> Flag Plazo Preconstrucción | D26: =+SUM(H26:AK26) -> 1 | H26: =+($D15<=H$7)*(H$6<=$D17) -> 1 | I26: 0 | J26: 0 | K26: 0 | L26: 0 | M26: 0 | N26: 0 | O26: 0 | P26: 0 | Q26: 0 | R26: 0 | S26: 0 | T26: 0 | U26: 0 | V26: 0 | W26: 0 | X26: 0 | Y26: 0 | Z26: 0 | AA26: 0 | AB26: 0 | AC26: 0 | AD26: 0 | AE26: 0 | AF26: 0 | AG26: 0 | AH26: 0 | AI26: 0 | AJ26: 0 | AK26: 0
B27: =+"Flag"&" "&B19 -> Flag Plazo Construcción | D27: =+SUM(H27:AK27) -> 2 | H27: =+($D18<=H$7)*(H$6<=$D20) -> 0 | I27: 1 | J27: 1 | K27: 0 | L27: 0 | M27: 0 | N27: 0 | O27: 0 | P27: 0 | Q27: 0 | R27: 0 | S27: 0 | T27: 0 | U27: 0 | V27: 0 | W27: 0 | X27: 0 | Y27: 0 | Z27: 0 | AA27: 0 | AB27: 0 | AC27: 0 | AD27: 0 | AE27: 0 | AF27: 0 | AG27: 0 | AH27: 0 | AI27: 0 | AJ27: 0 | AK27: 0
B28: Flag Mantenimiento Mayor | D28: =+SUM(H28:AK28) -> 4 | H28: =+IF(MOD(H30,$D$21)=0,1,0)*H29 -> 0 | I28: =+IF(MOD(I30,$D$21)=0,1,0)*I29 -> 0 | J28: 0 | K28: 0 | L28: 0 | M28: 0 | N28: 0 | O28: 1 | P28: 0 | Q28: 0 | R28: 0 | S28: 0 | T28: 1 | U28: 0 | V28: 0 | W28: 0 | X28: 0 | Y28: 1 | Z28: 0 | AA28: 0 | AB28: 0 | AC28: 0 | AD28: 1 | AE28: 0 | AF28: 0 | AG28: 0 | AH28: 0 | AI28: 0 | AJ28: 0 | AK28: 0
B29: =+"Flag"&" "&B23 -> Flag Plazo Operación | D29: =+SUM(H29:AK29) -> 22 | H29: =+($D22<=H$7)*(H$6<=$D24) -> 0 | I29: 0 | J29: 0 | K29: 1 | L29: 1 | M29: 1 | N29: 1 | O29: 1 | P29: 1 | Q29: 1 | R29: 1 | S29: 1 | T29: 1 | U29: 1 | V29: 1 | W29: 1 | X29: 1 | Y29: 1 | Z29: 1 | AA29: 1 | AB29: 1 | AC29: 1 | AD29: 1 | AE29: 1 | AF29: 1 | AG29: 0 | AH29: 0 | AI29: 0 | AJ29: 0 | AK29: 0
B30: Conteo Operación | H30: =+SUM($H$29:H29) -> 0 | I30: =+SUM($H$29:I29) -> 0 | J30: =+SUM($H$29:J29) -> 0 | K30: =+SUM($H$29:K29) -> 1 | L30: =+SUM($H$29:L29) -> 2 | M30: =+SUM($H$29:M29) -> 3 | N30: =+SUM($H$29:N29) -> 4 | O30: =+SUM($H$29:O29) -> 5 | P30: =+SUM($H$29:P29) -> 6 | Q30: =+SUM($H$29:Q29) -> 7 | R30: =+SUM($H$29:R29) -> 8 | S30: =+SUM($H$29:S29) -> 9 | T30: =+SUM($H$29:T29) -> 10 | U30: =+SUM($H$29:U29) -> 11 | V30: =+SUM($H$29:V29) -> 12 | W30: =+SUM($H$29:W29) -> 13 | X30: =+SUM($H$29:X29) -> 14 | Y30: =+SUM($H$29:Y29) -> 15 | Z30: =+SUM($H$29:Z29) -> 16 | AA30: =+SUM($H$29:AA29) -> 17 | AB30: =+SUM($H$29:AB29) -> 18 | AC30: =+SUM($H$29:AC29) -> 19 | AD30: =+SUM($H$29:AD29) -> 20 | AE30: =+SUM($H$29:AE29) -> 21 | AF30: =+SUM($H$29:AF29) -> 22 | AG30: =+SUM($H$29:AG29) -> 22 | AH30: =+SUM($H$29:AH29) -> 22 | AI30: =+SUM($H$29:AI29) -> 22 | AJ30: =+SUM($H$29:AJ29) -> 22 | AK30: =+SUM($H$29:AK29) -> 22
B32: Macroeconómicas
B34: IPC | H34: 0.02 | I34: 0.02 | J34: 0.02 | K34: 0.02 | L34: =+K34 -> 0.02 | M34: =+L34 -> 0.02 | N34: 0.02 | O34: 0.02 | P34: 0.02 | Q34: 0.02 | R34: 0.02 | S34: 0.02 | T34: 0.02 | U34: 0.02 | V34: 0.02 | W34: 0.02 | X34: 0.02 | Y34: 0.02 | Z34: 0.02 | AA34: 0.02 | AB34: 0.02 | AC34: 0.02 | AD34: 0.02 | AE34: 0.02 | AF34: 0.02 | AG34: 0.02 | AH34: 0.02 | AI34: 0.02 | AJ34: 0.02 | AK34: 0.02
B35: Factor Indexación | G35: 1 | H35: =+G35*(1+H34) -> 1.02 | I35: =+H35*(1+I34) -> 1.0404 | J35: 1.061208 | K35: 1.08243216 | L35: 1.104080803 | M35: 1.126162419 | N35: 1.148685668 | O35: 1.171659381 | P35: 1.195092569 | Q35: 1.21899442 | R35: 1.243374308 | S35: 1.268241795 | T35: 1.29360663 | U35: 1.319478763 | V35: 1.345868338 | W35: 1.372785705 | X35: 1.400241419 | Y35: 1.428246248 | Z35: 1.456811173 | AA35: 1.485947396 | AB35: 1.515666344 | AC35: 1.545979671 | AD35: 1.576899264 | AE35: 1.608437249 | AF35: 1.640605994 | AG35: 1.673418114 | AH35: 1.706886477 | AI35: 1.741024206 | AJ35: 1.77584469 | AK35: 1.811361584
B36: Factor IPC | G36: 1 | H36: =+G36*(1+H34) -> 1.02 | I36: =+H36*(1+I34) -> 1.0404 | J36: 1.061208 | K36: 1.08243216 | L36: 1.104080803 | M36: 1.126162419 | N36: 1.148685668 | O36: 1.171659381 | P36: 1.195092569 | Q36: 1.21899442 | R36: 1.243374308 | S36: 1.268241795 | T36: 1.29360663 | U36: 1.319478763 | V36: 1.345868338 | W36: 1.372785705 | X36: 1.400241419 | Y36: 1.428246248 | Z36: 1.456811173 | AA36: 1.485947396 | AB36: 1.515666344 | AC36: 1.545979671 | AD36: 1.576899264 | AE36: 1.608437249 | AF36: 1.640605994 | AG36: 1.673418114 | AH36: 1.706886477 | AI36: 1.741024206 | AJ36: 1.77584469 | AK36: 1.811361584
B37: Factor Demanda | H37: 0 | I37: 0 | J37: 0 | K37: 0.3 | L37: 0.5 | M37: =+L37+15% -> 0.65 | N37: =+M37+15% -> 0.8 | O37: 1 | P37: =+O37 -> 1 | Q37: 1 | R37: 1 | S37: 1 | T37: 1 | U37: 1 | V37: 1 | W37: 1 | X37: 1 | Y37: 1 | Z37: 1 | AA37: 1 | AB37: 1 | AC37: 1 | AD37: 1 | AE37: 1 | AF37: 1 | AG37: 1 | AH37: 1 | AI37: 1 | AJ37: 1 | AK37: 1
B39: Tasa de descuento | C39: % | D39: 0.038
B42: CAPEX
B44: Valor del dinero | C44: Switch | D44: Constantes
G46: Total
B47: Costes de equipos electromecánicos | C47: EUR miles | F47: =+$D$44 -> Constantes | G47: =+SUM(H47:AK47) -> 120 | H47: 60 | I47: 48 | J47: 12
B48: Obra civil y edificación | C48: EUR miles | F48: Constantes | G48: 80 | H48: 0 | I48: 40 | J48: 40
B49: Urbanización | C49: EUR miles | F49: Constantes | G49: 15 | H49: 0 | I49: 7.5 | J49: 7.5
B50: Seguridad y salud | C50: EUR miles | F50: Constantes | G50: 0.1 | H50: 0 | I50: 0.05 | J50: 0.05
B51: Adquisición predial | C51: EUR miles | F51: Constantes | G51: 0 | H51: 0 | I51: 0 | J51: 0
B52: Gestión de residuos de construcción | C52: EUR miles | F52: Constantes | G52: 12 | H52: 0 | I52: 6 | J52: 6
B53: Interferencia en Redes | C53: EUR miles | F53: =+$D$44 -> Constantes | G53: =+SUM(H53:AK53) -> 0 | H53: 0 | I53: 0 | J53: 0
B54: CAPEX | C54: EUR miles | F54: =+$D$44 -> Constantes | G54: =+SUM(H54:AK54) -> 227.1 | H54: =+SUM(H47:H53) -> 60 | I54: =+SUM(I47:I53) -> 101.55 | J54: 65.55 | K54: 0 | L54: 0 | M54: 0 | N54: 0 | O54: 0 | P54: 0 | Q54: 0 | R54: 0 | S54: 0 | T54: 0 | U54: 0 | V54: 0 | W54: 0 | X54: 0 | Y54: 0 | Z54: 0 | AA54: 0 | AB54: 0 | AC54: 0 | AD54: 0 | AE54: 0 | AF54: 0 | AG54: 0 | AH54: 0 | AI54: 0 | AJ54: 0 | AK54: 0
B57: =+B47 -> Costes de equipos electromecánicos | C57: EUR miles | F57: =+IF($F$47="Constantes","Constantes","Constantes") -> Constantes | G57: =+SUM(H57:AK57) -> 120 | H57: =+IF($F47="Corrientes",H47/H$36,H47) -> 60 | I57: =+IF($F47="Corrientes",I47/I$36,I47) -> 48 | J57: 12 | K57: 0 | L57: 0 | M57: 0 | N57: 0 | O57: 0 | P57: 0 | Q57: 0 | R57: 0 | S57: 0 | T57: 0 | U57: 0 | V57: 0 | W57: 0 | X57: 0 | Y57: 0 | Z57: 0 | AA57: 0 | AB57: 0 | AC57: 0 | AD57: 0 | AE57: 0 | AF57: 0 | AG57: 0 | AH57: 0 | AI57: 0 | AJ57: 0 | AK57: 0
B58: Obra civil y edificación | C58: EUR miles | F58: =+IF($F$47="Constantes","Constantes","Constantes") -> Constantes | G58: 80 | H58: =+IF($F48="Corrientes",H48/H$36,H48) -> 0 | I58: 40 | J58: 40 | K58: 0 | L58: 0 | M58: 0 | N58: 0 | O58: 0 | P58: 0 | Q58: 0 | R58: 0 | S58: 0 | T58: 0 | U58: 0 | V58: 0 | W58: 0 | X58: 0 | Y58: 0 | Z58: 0 | AA58: 0 | AB58: 0 | AC58: 0 | AD58: 0 | AE58: 0 | AF58: 0 | AG58: 0 | AH58: 0 | AI58: 0 | AJ58: 0 | AK58: 0
B59: Urbanización | C59: EUR miles | F59: Constantes | G59: 15 | H59: 0 | I59: 7.5 | J59: 7.5 | K59: 0 | L59: 0 | M59: 0 | N59: 0 | O59: 0 | P59: 0 | Q59: 0 | R59: 0 | S59: 0 | T59: 0 | U59: 0 | V59: 0 | W59: 0 | X59: 0 | Y59: 0 | Z59: 0 | AA59: 0 | AB59: 0 | AC59: 0 | AD59: 0 | AE59: 0 | AF59: 0 | AG59: 0 | AH59: 0 | AI59: 0 | AJ59: 0 | AK59: 0
B60: Seguridad y salud | C60: EUR miles | F60: Constantes | G60: 0.1 | H60: 0 | I60: 0.05 | J60: 0.05 | K60: 0 | L60: 0 | M60: 0 | N60: 0 | O60: 0 | P60: 0 | Q60: 0 | R60: 0 | S60: 0 | T60: 0 | U60: 0 | V60: 0 | W60: 0 | X60: 0 | Y60: 0 | Z60: 0 | AA60: 0 | AB60: 0 | AC60: 0 | AD60: 0 | AE60: 0 | AF60: 0 | AG60: 0 | AH60: 0 | AI60: 0 | AJ60: 0 | AK60: 0
B61: Adquisición predial | C61: EUR miles | F61: Constantes | G61: 0 | H61: 0 | I61: 0 | J61: 0 | K61: 0 | L61: 0 | M61: 0 | N61: 0 | O61: 0 | P61: 0 | Q61: 0 | R61: 0 | S61: 0 | T61: 0 | U61: 0 | V61: 0 | W61: 0 | X61: 0 | Y61: 0 | Z61: 0 | AA61: 0 | AB61: 0 | AC61: 0 | AD61: 0 | AE61: 0 | AF61: 0 | AG61: 0 | AH61: 0 | AI61: 0 | AJ61: 0 | AK61: 0
B62: Gestión de residuos de construcción | C62: EUR miles | F62: Constantes | G62: 12 | H62: 0 | I62: 6 | J62: 6 | K62: 0 | L62: 0 | M62: 0 | N62: 0 | O62: 0 | P62: 0 | Q62: 0 | R62: 0 | S62: 0 | T62: 0 | U62: 0 | V62: 0 | W62: 0 | X62: 0 | Y62: 0 | Z62: 0 | AA62: 0 | AB62: 0 | AC62: 0 | AD62: 0 | AE62: 0 | AF62: 0 | AG62: 0 | AH62: 0 | AI62: 0 | AJ62: 0 | AK62: 0
B63: =+B53 -> Interferencia en Redes | C63: EUR miles | F63: Constantes | G63: =+SUM(H63:AK63) -> 0 | H63: 0 | I63: 0 | J63: 0 | K63: 0 | L63: 0 | M63: 0 | N63: 0 | O63: 0 | P63: 0 | Q63: 0 | R63: 0 | S63: 0 | T63: 0 | U63: 0 | V63: 0 | W63: 0 | X63: 0 | Y63: 0 | Z63: 0 | AA63: 0 | AB63: 0 | AC63: 0 | AD63: 0 | AE63: 0 | AF63: 0 | AG63: 0 | AH63: 0 | AI63: 0 | AJ63: 0 | AK63: 0
B64: CAPEX | C64: EUR miles | F64: Constantes | G64: =+SUM(H64:AK64) -> 227.1 | H64: =+SUM(H57:H63) -> 60 | I64: =+SUM(I57:I63) -> 101.55 | J64: 65.55 | K64: 0 | L64: 0 | M64: 0 | N64: 0 | O64: 0 | P64: 0 | Q64: 0 | R64: 0 | S64: 0 | T64: 0 | U64: 0 | V64: 0 | W64: 0 | X64: 0 | Y64: 0 | Z64: 0 | AA64: 0 | AB64: 0 | AC64: 0 | AD64: 0 | AE64: 0 | AF64: 0 | AG64: 0 | AH64: 0 | AI64: 0 | AJ64: 0 | AK64: 0
B66: OPEX
G68: Total
B69: Xxxx | C69: EUR miles | F69: Corrientes | G69: =+SUM(H69:AK69) -> 502.3380612 | H69: 0 | I69: 0 | J69: 0 | K69: 18.40134672 | L69: 18.76937365 | M69: 19.14476113 | N69: 19.52765635 | O69: 19.91820948 | P69: 20.31657367 | Q69: 20.72290514 | R69: 21.13736324 | S69: 21.56011051 | T69: 21.99131272 | U69: 22.43113897 | V69: 22.87976175 | W69: 23.33735699 | X69: 23.80410413 | Y69: 24.28018621 | Z69: 24.76578993 | AA69: 25.26110573 | AB69: 25.76632785 | AC69: 26.2816544 | AD69: 26.80728749 | AE69: 27.34343324 | AF69: 27.89030191 | AG69: 0 | AH69: 0 | AI69: 0 | AJ69: 0 | AK69: 0
B70: OPEX | C70: EUR miles | F70: Corrientes | G70: =+SUM(H70:AK70) -> 502.3380612 | H70: =+SUM(H69:H69) -> 0 | I70: 0 | J70: 0 | K70: 18.40134672 | L70: 18.76937365 | M70: 19.14476113 | N70: 19.52765635 | O70: 19.91820948 | P70: 20.31657367 | Q70: 20.72290514 | R70: 21.13736324 | S70: 21.56011051 | T70: 21.99131272 | U70: 22.43113897 | V70: 22.87976175 | W70: 23.33735699 | X70: 23.80410413 | Y70: 24.28018621 | Z70: 24.76578993 | AA70: 25.26110573 | AB70: 25.76632785 | AC70: 26.2816544 | AD70: 26.80728749 | AE70: 27.34343324 | AF70: 27.89030191 | AG70: 0 | AH70: 0 | AI70: 0 | AJ70: 0 | AK70: 0
B72: =+B69 -> Xxxx | C72: EUR miles | F72: Constantes | G72: =+SUM(H72:AK72) -> 374 | H72: =+H69/H$36 -> 0 | I72: =+I69/I$36 -> 0 | J72: 0 | K72: 17 | L72: 17 | M72: 17 | N72: 17 | O72: 17 | P72: 17 | Q72: 17 | R72: 17 | S72: 17 | T72: 17 | U72: 17 | V72: 17 | W72: 17 | X72: 17 | Y72: 17 | Z72: 17 | AA72: 17 | AB72: 17 | AC72: 17 | AD72: 17 | AE72: 17 | AF72: 17 | AG72: 0 | AH72: 0 | AI72: 0 | AJ72: 0 | AK72: 0
B73: =+B70 -> OPEX | C73: EUR miles | F73: Constantes | G73: =+SUM(H73:AK73) -> 374 | H73: =+SUM(H72:H72) -> 0 | I73: 0 | J73: 0 | K73: 17 | L73: 17 | M73: 17 | N73: 17 | O73: 17 | P73: 17 | Q73: 17 | R73: 17 | S73: 17 | T73: 17 | U73: 17 | V73: 17 | W73: 17 | X73: 17 | Y73: 17 | Z73: 17 | AA73: 17 | AB73: 17 | AC73: 17 | AD73: 17 | AE73: 17 | AF73: 17 | AG73: 0 | AH73: 0 | AI73: 0 | AJ73: 0 | AK73: 0
B75: Mantenimiento Mayor
G77: Total
B78: Xxxx | C78: EUR miles | F78: Corrientes | G78: =+SUM(H78:AK78) -> 109.4082305 | H78: 0 | I78: 0 | J78: 0 | K78: 0 | L78: 0 | M78: 0 | N78: 0 | O78: 23.43318762 | P78: 0 | Q78: 0 | R78: 0 | S78: 0 | T78: 25.87213261 | U78: 0 | V78: 0 | W78: 0 | X78: 0 | Y78: 28.56492495 | Z78: 0 | AA78: 0 | AB78: 0 | AC78: 0 | AD78: 31.53798528 | AE78: 0 | AF78: 0 | AG78: 0 | AH78: 0 | AI78: 0 | AJ78: 0 | AK78: 0
B79: =+B75 -> Mantenimiento Mayor | C79: EUR miles | F79: Corrientes | G79: =+SUM(H79:AK79) -> 109.4082305 | H79: =+SUM(H78:H78) -> 0 | I79: 0 | J79: 0 | K79: 0 | L79: 0 | M79: 0 | N79: 0 | O79: 23.43318762 | P79: 0 | Q79: 0 | R79: 0 | S79: 0 | T79: 25.87213261 | U79: 0 | V79: 0 | W79: 0 | X79: 0 | Y79: 28.56492495 | Z79: 0 | AA79: 0 | AB79: 0 | AC79: 0 | AD79: 31.53798528 | AE79: 0 | AF79: 0 | AG79: 0 | AH79: 0 | AI79: 0 | AJ79: 0 | AK79: 0
B81: =+B78 -> Xxxx | C81: EUR miles | F81: Constantes | G81: =+SUM(H81:AK81) -> 80 | H81: =+H78/H$36 -> 0 | I81: =+I78/I$36 -> 0 | J81: 0 | K81: 0 | L81: 0 | M81: 0 | N81: 0 | O81: 20 | P81: 0 | Q81: 0 | R81: 0 | S81: 0 | T81: 20 | U81: 0 | V81: 0 | W81: 0 | X81: 0 | Y81: 20 | Z81: 0 | AA81: 0 | AB81: 0 | AC81: 0 | AD81: 20 | AE81: 0 | AF81: 0 | AG81: 0 | AH81: 0 | AI81: 0 | AJ81: 0 | AK81: 0
B82: =+B79 -> Mantenimiento Mayor | C82: EUR miles | F82: Constantes | G82: =+SUM(H82:AK82) -> 80 | H82: =+SUM(H81:H81) -> 0 | I82: 0 | J82: 0 | K82: 0 | L82: 0 | M82: 0 | N82: 0 | O82: 20 | P82: 0 | Q82: 0 | R82: 0 | S82: 0 | T82: 20 | U82: 0 | V82: 0 | W82: 0 | X82: 0 | Y82: 20 | Z82: 0 | AA82: 0 | AB82: 0 | AC82: 0 | AD82: 20 | AE82: 0 | AF82: 0 | AG82: 0 | AH82: 0 | AI82: 0 | AJ82: 0 | AK82: 0
B84: Ingresos por terceras fuentes
B86: Nota: A continuación, será posible ajustar la tipología de los ingresos en función de la naturaleza de las fuentes de ingresos de terceros asociadas al Proyecto objeto de análisis.
G89: Total
B91: Ingresos Demanda | C91: EUR miles | F91: Corrientes | G91: =+SUM(H91:AK91) -> 0
B92: =+$B$84 -> Ingresos por terceras fuentes | C92: EUR miles | F92: Corrientes | G92: =+SUM(H92:AK92) -> 0 | H92: =+H90*H91/1000000 -> 0 | I92: =+I90*I91/1000000 -> 0 | J92: 0 | K92: 0 | L92: 0 | M92: 0 | N92: 0 | O92: 0 | P92: 0 | Q92: 0 | R92: 0 | S92: 0 | T92: 0 | U92: 0 | V92: 0 | W92: 0 | X92: 0 | Y92: 0 | Z92: 0 | AA92: 0 | AB92: 0 | AC92: 0 | AD92: 0 | AE92: 0 | AF92: 0 | AG92: 0 | AH92: 0 | AI92: 0 | AJ92: 0 | AK92: 0
B94: =+B91 -> Ingresos Demanda | C94: EUR miles | F94: Constantes | G94: =+SUM(H94:AK94) -> 0 | H94: =+H91/H$35 -> 0 | I94: =+I91/I$35 -> 0 | J94: 0 | K94: 0 | L94: 0 | M94: 0 | N94: 0 | O94: 0 | P94: 0 | Q94: 0 | R94: 0 | S94: 0 | T94: 0 | U94: 0 | V94: 0 | W94: 0 | X94: 0 | Y94: 0 | Z94: 0 | AA94: 0 | AB94: 0 | AC94: 0 | AD94: 0 | AE94: 0 | AF94: 0 | AG94: 0 | AH94: 0 | AI94: 0 | AJ94: 0 | AK94: 0
B95: =+B92 -> Ingresos por terceras fuentes | C95: EUR miles | F95: Constantes | G95: =+SUM(H95:AK95) -> 0 | H95: =+SUM(H94:H94) -> 0 | I95: 0 | J95: 0 | K95: 0 | L95: 0 | M95: 0 | N95: 0 | O95: 0 | P95: 0 | Q95: 0 | R95: 0 | S95: 0 | T95: 0 | U95: 0 | V95: 0 | W95: 0 | X95: 0 | Y95: 0 | Z95: 0 | AA95: 0 | AB95: 0 | AC95: 0 | AD95: 0 | AE95: 0 | AF95: 0 | AG95: 0 | AH95: 0 | AI95: 0 | AJ95: 0 | AK95: 0
G98: Total
B100: Ingresos por Venta de Energía | C100: EUR miles | F100: Corrientes | G100: =+SUM(H100:AK100) -> 1.115495957 | H100: 0 | I100: 0 | J100: 0 | K100: 0.01311699951 | L100: 0.02229889917 | M100: 0.02956834029 | N100: 0.03711963951 | O100: 0.04732754037 | P100: 0.04827409118 | Q100: 0.049239573 | R100: 0.05022436446 | S100: 0.05122885175 | T100: 0.05225342879 | U100: 0.05329849736 | V100: 0.05436446731 | W100: 0.05545175666 | X100: 0.05656079179 | Y100: 0.05769200763 | Z100: 0.05884584778 | AA100: 0.06002276473 | AB100: 0.06122322003 | AC100: 0.06244768443 | AD100: 0.06369663812 | AE100: 0.06497057088 | AF100: 0.0662699823 | AG100: 0 | AH100: 0 | AI100: 0 | AJ100: 0 | AK100: 0
B101: =+$B$84 -> Ingresos por terceras fuentes | C101: EUR miles | F101: Corrientes | G101: =+SUM(H101:AK101) -> 1.115495957e-06 | H101: =+H100/1000000 -> 0 | I101: =+I100/1000000 -> 0 | J101: 0 | K101: 1.311699951e-08 | L101: 2.229889917e-08 | M101: 2.956834029e-08 | N101: 3.711963951e-08 | O101: 4.732754037e-08 | P101: 4.827409118e-08 | Q101: 4.9239573e-08 | R101: 5.022436446e-08 | S101: 5.122885175e-08 | T101: 5.225342879e-08 | U101: 5.329849736e-08 | V101: 5.436446731e-08 | W101: 5.545175666e-08 | X101: 5.656079179e-08 | Y101: 5.769200763e-08 | Z101: 5.884584778e-08 | AA101: 6.002276473e-08 | AB101: 6.122322003e-08 | AC101: 6.244768443e-08 | AD101: 6.369663812e-08 | AE101: 6.497057088e-08 | AF101: 6.62699823e-08 | AG101: 0 | AH101: 0 | AI101: 0 | AJ101: 0 | AK101: 0
B103: =+B100 -> Ingresos por Venta de Energía | C103: EUR miles | F103: Constantes | G103: =+SUM(H103:AK103) -> 0.8179704 | H103: =+H100/H$35 -> 0 | I103: =+I100/I$35 -> 0 | J103: 0 | K103: 0.01211808 | L103: 0.0201968 | M103: 0.02625584 | N103: 0.03231488 | O103: 0.0403936 | P103: 0.0403936 | Q103: 0.0403936 | R103: 0.0403936 | S103: 0.0403936 | T103: 0.0403936 | U103: 0.0403936 | V103: 0.0403936 | W103: 0.0403936 | X103: 0.0403936 | Y103: 0.0403936 | Z103: 0.0403936 | AA103: 0.0403936 | AB103: 0.0403936 | AC103: 0.0403936 | AD103: 0.0403936 | AE103: 0.0403936 | AF103: 0.0403936 | AG103: 0 | AH103: 0 | AI103: 0 | AJ103: 0 | AK103: 0
B104: =+B101 -> Ingresos por terceras fuentes | C104: EUR miles | F104: Constantes | G104: =+SUM(H104:AK104) -> 0.8179704 | H104: =+SUM(H103:H103) -> 0 | I104: 0 | J104: 0 | K104: 0.01211808 | L104: 0.0201968 | M104: 0.02625584 | N104: 0.03231488 | O104: 0.0403936 | P104: 0.0403936 | Q104: 0.0403936 | R104: 0.0403936 | S104: 0.0403936 | T104: 0.0403936 | U104: 0.0403936 | V104: 0.0403936 | W104: 0.0403936 | X104: 0.0403936 | Y104: 0.0403936 | Z104: 0.0403936 | AA104: 0.0403936 | AB104: 0.0403936 | AC104: 0.0403936 | AD104: 0.0403936 | AE104: 0.0403936 | AF104: 0.0403936 | AG104: 0 | AH104: 0 | AI104: 0 | AJ104: 0 | AK104: 0
B106: PPT
B108: Nota: En caso de no aplicar este tipo de ingreso poner a cero.
G110: Total
B112: PPT | C112: EUR miles | F112: Corrientes | G112: =+SUM(H112:AK112) -> 11.15495957 | H112: 0 | I112: 0 | J112: 0 | K112: 0.1311699951 | L112: 0.2229889917 | M112: 0.2956834029 | N112: 0.3711963951 | O112: 0.4732754037 | P112: 0.4827409118 | Q112: 0.49239573 | R112: 0.5022436446 | S112: 0.5122885175 | T112: 0.5225342879 | U112: 0.5329849736 | V112: 0.5436446731 | W112: 0.5545175666 | X112: 0.5656079179 | Y112: 0.5769200763 | Z112: 0.5884584778 | AA112: 0.6002276473 | AB112: 0.6122322003 | AC112: 0.6244768443 | AD112: 0.6369663812 | AE112: 0.6497057088 | AF112: 0.662699823 | AG112: 0 | AH112: 0 | AI112: 0 | AJ112: 0 | AK112: 0
B113: =+B106 -> PPT | C113: EUR miles | F113: Corrientes | G113: =+SUM(H113:AK113) -> 1.115495957e-05 | H113: =+H112/1000000 -> 0 | I113: =+I112/1000000 -> 0 | J113: =+J112/1000000 -> 0 | K113: =+K112/1000000 -> 1.311699951e-07 | L113: =+L112/1000000 -> 2.229889917e-07 | M113: 2.956834029e-07 | N113: 3.711963951e-07 | O113: 4.732754037e-07 | P113: 4.827409118e-07 | Q113: 4.9239573e-07 | R113: 5.022436446e-07 | S113: 5.122885175e-07 | T113: 5.225342879e-07 | U113: 5.329849736e-07 | V113: 5.436446731e-07 | W113: 5.545175666e-07 | X113: 5.656079179e-07 | Y113: 5.769200763e-07 | Z113: 5.884584778e-07 | AA113: 6.002276473e-07 | AB113: 6.122322003e-07 | AC113: 6.244768443e-07 | AD113: 6.369663812e-07 | AE113: 6.497057088e-07 | AF113: 6.62699823e-07 | AG113: 0 | AH113: 0 | AI113: 0 | AJ113: 0 | AK113: 0
B115: =+B112 -> PPT | C115: EUR miles | F115: Constantes | G115: =+SUM(H115:AK115) -> 8.179704 | H115: =+H112/H$35 -> 0 | I115: =+I112/I$35 -> 0 | J115: 0 | K115: 0.1211808 | L115: 0.201968 | M115: 0.2625584 | N115: 0.3231488 | O115: 0.403936 | P115: 0.403936 | Q115: 0.403936 | R115: 0.403936 | S115: 0.403936 | T115: 0.403936 | U115: 0.403936 | V115: 0.403936 | W115: 0.403936 | X115: 0.403936 | Y115: 0.403936 | Z115: 0.403936 | AA115: 0.403936 | AB115: 0.403936 | AC115: 0.403936 | AD115: 0.403936 | AE115: 0.403936 | AF115: 0.403936 | AG115: 0 | AH115: 0 | AI115: 0 | AJ115: 0 | AK115: 0
B116: =+B112 -> PPT | C116: EUR miles | F116: Constantes | G116: =+SUM(H116:AK116) -> 8.179704 | H116: =+H115 -> 0 | I116: =+I115 -> 0 | J116: 0 | K116: 0.1211808 | L116: 0.201968 | M116: 0.2625584 | N116: 0.3231488 | O116: 0.403936 | P116: 0.403936 | Q116: 0.403936 | R116: 0.403936 | S116: 0.403936 | T116: 0.403936 | U116: 0.403936 | V116: 0.403936 | W116: 0.403936 | X116: 0.403936 | Y116: 0.403936 | Z116: 0.403936 | AA116: 0.403936 | AB116: 0.403936 | AC116: 0.403936 | AD116: 0.403936 | AE116: 0.403936 | AF116: 0.403936 | AG116: 0 | AH116: 0 | AI116: 0 | AJ116: 0 | AK116: 0
B118: PPD
B120: Valor del dinero | C120: Switch | D120: Corrientes | G120: Total
B122: PPD | C122: EUR miles | F122: =+IF($D$120="Corrientes",$D$120,"Constantes") -> Corrientes | G122: =+SUM(H122:AK122) -> 1211.521206 | H122: 0 | I122: 0 | J122: 0 | K122: 44.37971856 | L122: 45.26731293 | M122: 46.17265919 | N122: 47.09611237 | O122: 48.03803462 | P122: 48.99879531 | Q122: 49.97877122 | R122: 50.97834664 | S122: 51.99791358 | T122: 53.03787185 | U122: 54.09862929 | V122: 55.18060187 | W122: 56.28421391 | X122: 57.40989819 | Y122: 58.55809615 | Z122: 59.72925807 | AA122: 60.92384324 | AB122: 62.1423201 | AC122: 63.3851665 | AD122: 64.65286983 | AE122: 65.94592723 | AF122: 67.26484577 | AG122: 0 | AH122: 0 | AI122: 0 | AJ122: 0 | AK122: 0
B123: =+B118 -> PPD | C123: EUR miles | F123: =+IF($D$120="Corrientes",$D$120,"Constantes") -> Corrientes | G123: =+SUM(H123:AK123) -> 1211.521206 | H123: =+H122 -> 0 | I123: =+I122 -> 0 | J123: 0 | K123: 44.37971856 | L123: 45.26731293 | M123: 46.17265919 | N123: 47.09611237 | O123: 48.03803462 | P123: 48.99879531 | Q123: 49.97877122 | R123: 50.97834664 | S123: 51.99791358 | T123: 53.03787185 | U123: 54.09862929 | V123: 55.18060187 | W123: 56.28421391 | X123: 57.40989819 | Y123: 58.55809615 | Z123: 59.72925807 | AA123: 60.92384324 | AB123: 62.1423201 | AC123: 63.3851665 | AD123: 64.65286983 | AE123: 65.94592723 | AF123: 67.26484577 | AG123: 0 | AH123: 0 | AI123: 0 | AJ123: 0 | AK123: 0
B125: =+B122 -> PPD | C125: EUR miles | F125: =+IF($F$122="Corrientes","Constantes", "Constantes") -> Constantes | G125: =+SUM(H125:AK125) -> 902 | H125: =+IF($F$122="Corrientes",H122/H$35,H122) -> 0 | I125: =+IF($F$122="Corrientes",I122/I$35,I122) -> 0 | J125: 0 | K125: 41 | L125: 41 | M125: 41 | N125: 41 | O125: 41 | P125: 41 | Q125: 41 | R125: 41 | S125: 41 | T125: 41 | U125: 41 | V125: 41 | W125: 41 | X125: 41 | Y125: 41 | Z125: 41 | AA125: 41 | AB125: 41 | AC125: 41 | AD125: 41 | AE125: 41 | AF125: 41 | AG125: 0 | AH125: 0 | AI125: 0 | AJ125: 0 | AK125: 0
B126: =+B122 -> PPD | C126: EUR miles | F126: =+IF($F$122="Corrientes","Constantes", "Constantes") -> Constantes | G126: =+SUM(H126:AK126) -> 902 | H126: =+H125 -> 0 | I126: 0 | J126: 0 | K126: 41 | L126: 41 | M126: 41 | N126: 41 | O126: 41 | P126: 41 | Q126: 41 | R126: 41 | S126: 41 | T126: 41 | U126: 41 | V126: 41 | W126: 41 | X126: 41 | Y126: 41 | Z126: 41 | AA126: 41 | AB126: 41 | AC126: 41 | AD126: 41 | AE126: 41 | AF126: 41 | AG126: 0 | AH126: 0 | AI126: 0 | AJ126: 0 | AK126: 0
B129: Impuestos
B131: Nota: A continuación, será posible incluir los Impuestos a los que está sujeto el Proyecto. | G131: Total
B133: Impuesto de Sociedades | C133: EUR miles | F133: Corrientes | G133: =+SUM(H133:AK133) -> 93.90764147 | H133: 0.6630800388 | I133: 2.528342177 | J133: 4.64588115 | K133: 5.519224462 | L133: 5.42483209 | M133: 5.30892613 | N133: 5.169608758 | O133: 5.258158736 | P133: 5.340987323 | Q133: 5.1645686 | R133: 4.960071206 | S133: 4.724805617 | T133: 4.736159349 | U133: 4.734927307 | V133: 4.439431922 | W133: 4.104205739 | X133: 3.725522646 | Y133: 3.608818623 | Z133: 3.467016784 | AA133: 2.988151365 | AB133: 2.452191736 | AC133: 1.853877386 | AD133: 1.529188352 | AE133: 1.159814595 | AF133: 0.3998493831 | AG133: 2.692339745e-12 | AH133: 2.925704025e-12 | AI133: 3.179295651e-12 | AJ133: 3.454867871e-12 | AK133: 3.754325901e-12
B134: =+B129 -> Impuestos | C134: EUR miles | F134: Corrientes | G134: =+SUM(H134:AK134) -> 93.90764147 | H134: =+SUM(H133:H133) -> 0.6630800388 | I134: 2.528342177 | J134: 4.64588115 | K134: 5.519224462 | L134: 5.42483209 | M134: 5.30892613 | N134: 5.169608758 | O134: 5.258158736 | P134: 5.340987323 | Q134: 5.1645686 | R134: 4.960071206 | S134: 4.724805617 | T134: 4.736159349 | U134: 4.734927307 | V134: 4.439431922 | W134: 4.104205739 | X134: 3.725522646 | Y134: 3.608818623 | Z134: 3.467016784 | AA134: 2.988151365 | AB134: 2.452191736 | AC134: 1.853877386 | AD134: 1.529188352 | AE134: 1.159814595 | AF134: 0.3998493831 | AG134: 2.692339745e-12 | AH134: 2.925704025e-12 | AI134: 3.179295651e-12 | AJ134: 3.454867871e-12 | AK134: 3.754325901e-12
B136: =+B133 -> Impuesto de Sociedades | C136: EUR miles | F136: Constantes | G136: =+SUM(H136:AK136) -> 75.461179 | H136: =+H133/H$36 -> 0.6500784694 | I136: =+I133/I$36 -> 2.430163569 | J136: 4.377917571 | K136: 5.098910275 | L136: 4.913437562 | M136: 4.714174474 | N136: 4.500455523 | O136: 4.487787852 | P136: 4.469099267 | Q136: 4.236745071 | R136: 3.989201942 | S136: 3.725476985 | T136: 3.66120522 | U136: 3.588483149 | V136: 3.298563311 | W136: 2.989691489 | X136: 2.660628799 | Y136: 2.526748191 | Z136: 2.379866965 | AA136: 2.010940207 | AB136: 1.617896806 | AC136: 1.199160261 | AD136: 0.9697438429 | AE136: 0.7210816555 | AF136: 0.2437205426 | AG136: 1.608886459e-12 | AH136: 1.71405894e-12 | AI136: 1.826106518e-12 | AJ136: 1.945478617e-12 | AK136: 2.072654037e-12
B137: =+B133 -> Impuesto de Sociedades | C137: EUR miles | F137: Constantes | G137: =+SUM(H137:AK137) -> 75.461179 | H137: =+SUM(H136:H136) -> 0.6500784694 | I137: =+SUM(I136:I136) -> 2.430163569 | J137: 4.377917571 | K137: 5.098910275 | L137: 4.913437562 | M137: 4.714174474 | N137: 4.500455523 | O137: 4.487787852 | P137: 4.469099267 | Q137: 4.236745071 | R137: 3.989201942 | S137: 3.725476985 | T137: 3.66120522 | U137: 3.588483149 | V137: 3.298563311 | W137: 2.989691489 | X137: 2.660628799 | Y137: 2.526748191 | Z137: 2.379866965 | AA137: 2.010940207 | AB137: 1.617896806 | AC137: 1.199160261 | AD137: 0.9697438429 | AE137: 0.7210816555 | AF137: 0.2437205426 | AG137: 1.608886459e-12 | AH137: 1.71405894e-12 | AI137: 1.826106518e-12 | AJ137: 1.945478617e-12 | AK137: 2.072654037e-12
B139: Transferencia de Riesgos
B141: Supuestos
B143: Riesgos Compartidos | D143: Transferido | E143: Retenido
B144: =+$B$148 -> Adquisición Equipos | D144: 0.8 | E144: =100%-D144 -> 0.2
B146: Riesgos Transferidos (Sobre coste)
B148: Adquisición Equipos | C148: % | D148: 0.1
B150: Costrucción | C150: % | D150: 0.1
B152: Operación y Mantenimiento | C152: % | D152: 0.1

Sheet VpD
A1: =+Inputs!A1 -> Proyecto Ejemplo Residuos
A2: =+Inputs!A2 -> Valor por Dinero - Comparador Público Privado
A3: =+Inputs!A3 -> Cifras en millones de Euros
B5: Año | F5: =+YEAR(F6) -> 2025 | G5: =+YEAR(G6) -> 2026 | H5: 2027 | I5: 2028 | J5: 2029 | K5: 2030 | L5: 2031 | M5: 2032 | N5: 2033 | O5: 2034 | P5: 2035 | Q5: 2036 | R5: 2037 | S5: 2038 | T5: 2039 | U5: 2040 | V5: 2041 | W5: 2042 | X5: 2043 | Y5: 2044 | Z5: 2045 | AA5: 2046 | AB5: 2047 | AC5: 2048 | AD5: 2049 | AE5: 2050 | AF5: 2051 | AG5: 2052 | AH5: 2053 | AI5: 2054
B6: Fecha Inicio | F6: =+Inputs!H6 -> 2025-01-01 | G6: =+F7+1 -> 2026-01-01 | H6: =+G7+1 -> 2027-01-01 | I6: 2028-01-01 | J6: 2029-01-01 | K6: 2030-01-01 | L6: 2031-01-01 | M6: 2032-01-01 | N6: 2033-01-01 | O6: 2034-01-01 | P6: 2035-01-01 | Q6: 2036-01-01 | R6: 2037-01-01 | S6: 2038-01-01 | T6: 2039-01-01 | U6: 2040-01-01 | V6: 2041-01-01 | W6: 2042-01-01 | X6: 2043-01-01 | Y6: 2044-01-01 | Z6: 2045-01-01 | AA6: 2046-01-01 | AB6: 2047-01-01 | AC6: 2048-01-01 | AD6: 2049-01-01 | AE6: 2050-01-01 | AF6: 2051-01-01 | AG6: 2052-01-01 | AH6: 2053-01-01 | AI6: 2054-01-01
B7: Fecha Fin | F7: =+DATE(YEAR(F6),MONTH(F6)+12,DAY(F6)-1) -> 2025-12-31 | G7: =+DATE(YEAR(G6),MONTH(G6)+12,DAY(G6)-1) -> 2026-12-31 | H7: 2027-12-31 | I7: 2028-12-31 | J7: 2029-12-31 | K7: 2030-12-31 | L7: 2031-12-31 | M7: 2032-12-31 | N7: 2033-12-31 | O7: 2034-12-31 | P7: 2035-12-31 | Q7: 2036-12-31 | R7: 2037-12-31 | S7: 2038-12-31 | T7: 2039-12-31 | U7: 2040-12-31 | V7: 2041-12-31 | W7: 2042-12-31 | X7: 2043-12-31 | Y7: 2044-12-31 | Z7: 2045-12-31 | AA7: 2046-12-31 | AB7: 2047-12-31 | AC7: 2048-12-31 | AD7: 2049-12-31 | AE7: 2050-12-31 | AF7: 2051-12-31 | AG7: 2052-12-31 | AH7: 2053-12-31 | AI7: 2054-12-31
F8: =+EOMONTH(F6,12) -> 2026-01-31
B9: =+Inputs!B26 -> Flag Plazo Preconstrucción | F9: =+Inputs!H26 -> 1 | G9: =+Inputs!I26 -> 0 | H9: =+Inputs!J26 -> 0 | I9: =+Inputs!K26 -> 0 | J9: =+Inputs!L26 -> 0 | K9: =+Inputs!M26 -> 0 | L9: =+Inputs!N26 -> 0 | M9: =+Inputs!O26 -> 0 | N9: =+Inputs!P26 -> 0 | O9: =+Inputs!Q26 -> 0 | P9: =+Inputs!R26 -> 0 | Q9: =+Inputs!S26 -> 0 | R9: =+Inputs!T26 -> 0 | S9: =+Inputs!U26 -> 0 | T9: =+Inputs!V26 -> 0 | U9: =+Inputs!W26 -> 0 | V9: =+Inputs!X26 -> 0 | W9: =+Inputs!Y26 -> 0 | X9: =+Inputs!Z26 -> 0 | Y9: =+Inputs!AA26 -> 0 | Z9: =+Inputs!AB26 -> 0 | AA9: =+Inputs!AC26 -> 0 | AB9: =+Inputs!AD26 -> 0 | AC9: =+Inputs!AE26 -> 0 | AD9: =+Inputs!AF26 -> 0 | AE9: =+Inputs!AG26 -> 0 | AF9: =+Inputs!AH26 -> 0 | AG9: =+Inputs!AI26 -> 0 | AH9: =+Inputs!AJ26 -> 0 | AI9: =+Inputs!AK26 -> 0
B10: =+Inputs!B27 -> Flag Plazo Construcción | F10: =+Inputs!H27 -> 0 | G10: =+Inputs!I27 -> 1 | H10: =+Inputs!J27 -> 1 | I10: =+Inputs!K27 -> 0 | J10: =+Inputs!L27 -> 0 | K10: =+Inputs!M27 -> 0 | L10: =+Inputs!N27 -> 0 | M10: =+Inputs!O27 -> 0 | N10: =+Inputs!P27 -> 0 | O10: =+Inputs!Q27 -> 0 | P10: =+Inputs!R27 -> 0 | Q10: =+Inputs!S27 -> 0 | R10: =+Inputs!T27 -> 0 | S10: =+Inputs!U27 -> 0 | T10: =+Inputs!V27 -> 0 | U10: =+Inputs!W27 -> 0 | V10: =+Inputs!X27 -> 0 | W10: =+Inputs!Y27 -> 0 | X10: =+Inputs!Z27 -> 0 | Y10: =+Inputs!AA27 -> 0 | Z10: =+Inputs!AB27 -> 0 | AA10: =+Inputs!AC27 -> 0 | AB10: =+Inputs!AD27 -> 0 | AC10: =+Inputs!AE27 -> 0 | AD10: =+Inputs!AF27 -> 0 | AE10: =+Inputs!AG27 -> 0 | AF10: =+Inputs!AH27 -> 0 | AG10: =+Inputs!AI27 -> 0 | AH10: =+Inputs!AJ27 -> 0 | AI10: =+Inputs!AK27 -> 0
B11: =+Inputs!B29 -> Flag Plazo Operación | C11: flag | F11: =+Inputs!H29 -> 0 | G11: =+Inputs!I29 -> 0 | H11: =+Inputs!J29 -> 0 | I11: =+Inputs!K29 -> 1 | J11: =+Inputs!L29 -> 1 | K11: =+Inputs!M29 -> 1 | L11: =+Inputs!N29 -> 1 | M11: =+Inputs!O29 -> 1 | N11: =+Inputs!P29 -> 1 | O11: =+Inputs!Q29 -> 1 | P11: =+Inputs!R29 -> 1 | Q11: =+Inputs!S29 -> 1 | R11: =+Inputs!T29 -> 1 | S11: =+Inputs!U29 -> 1 | T11: =+Inputs!V29 -> 1 | U11: =+Inputs!W29 -> 1 | V11: =+Inputs!X29 -> 1 | W11: =+Inputs!Y29 -> 1 | X11: =+Inputs!Z29 -> 1 | Y11: =+Inputs!AA29 -> 1 | Z11: =+Inputs!AB29 -> 1 | AA11: =+Inputs!AC29 -> 1 | AB11: =+Inputs!AD29 -> 1 | AC11: =+Inputs!AE29 -> 1 | AD11: =+Inputs!AF29 -> 1 | AE11: =+Inputs!AG29 -> 0 | AF11: =+Inputs!AH29 -> 0 | AG11: =+Inputs!AI29 -> 0 | AH11: =+Inputs!AJ29 -> 0 | AI11: =+Inputs!AK29 -> 0
B12: =+Inputs!B36 -> Factor IPC | C12: índice | F12: =+Inputs!H36 -> 1.02 | G12: =+Inputs!I36 -> 1.0404 | H12: =+Inputs!J36 -> 1.061208 | I12: =+Inputs!K36 -> 1.08243216 | J12: =+Inputs!L36 -> 1.104080803 | K12: =+Inputs!M36 -> 1.126162419 | L12: =+Inputs!N36 -> 1.148685668 | M12: =+Inputs!O36 -> 1.171659381 | N12: =+Inputs!P36 -> 1.195092569 | O12: =+Inputs!Q36 -> 1.21899442 | P12: =+Inputs!R36 -> 1.243374308 | Q12: =+Inputs!S36 -> 1.268241795 | R12: =+Inputs!T36 -> 1.29360663 | S12: =+Inputs!U36 -> 1.319478763 | T12: =+Inputs!V36 -> 1.345868338 | U12: =+Inputs!W36 -> 1.372785705 | V12: =+Inputs!X36 -> 1.400241419 | W12: =+Inputs!Y36 -> 1.428246248 | X12: =+Inputs!Z36 -> 1.456811173 | Y12: =+Inputs!AA36 -> 1.485947396 | Z12: =+Inputs!AB36 -> 1.515666344 | AA12: =+Inputs!AC36 -> 1.545979671 | AB12: =+Inputs!AD36 -> 1.576899264 | AC12: =+Inputs!AE36 -> 1.608437249 | AD12: =+Inputs!AF36 -> 1.640605994 | AE12: =+Inputs!AG36 -> 1.673418114 | AF12: =+Inputs!AH36 -> 1.706886477 | AG12: =+Inputs!AI36 -> 1.741024206 | AH12: =+Inputs!AJ36 -> 1.77584469 | AI12: =+Inputs!AK36 -> 1.811361584
B15: Valor por Dinero
B17: Tasa de descuento | C17: % | D17: 0.05207
B19: CSP
B21: Coste Base del Proyecto
E22: Total
B24: =+Inputs!B47 -> Costes de equipos electromecánicos | C24: EUR miles | D24: Constantes | E24: =+SUM(F24:AI24) -> 120 | F24: =+Inputs!H57 -> 60 | G24: =+Inputs!I57 -> 48 | H24: =+Inputs!J57 -> 12 | I24: =+Inputs!K57 -> 0 | J24: =+Inputs!L57 -> 0 | K24: =+Inputs!M57 -> 0 | L24: =+Inputs!N57 -> 0 | M24: =+Inputs!O57 -> 0 | N24: =+Inputs!P57 -> 0 | O24: =+Inputs!Q57 -> 0 | P24: =+Inputs!R57 -> 0 | Q24: =+Inputs!S57 -> 0 | R24: =+Inputs!T57 -> 0 | S24: =+Inputs!U57 -> 0 | T24: =+Inputs!V57 -> 0 | U24: =+Inputs!W57 -> 0 | V24: =+Inputs!X57 -> 0 | W24: =+Inputs!Y57 -> 0 | X24: =+Inputs!Z57 -> 0 | Y24: =+Inputs!AA57 -> 0 | Z24: =+Inputs!AB57 -> 0 | AA24: =+Inputs!AC57 -> 0 | AB24: =+Inputs!AD57 -> 0 | AC24: =+Inputs!AE57 -> 0 | AD24: =+Inputs!AF57 -> 0 | AE24: =+Inputs!AG57 -> 0 | AF24: =+Inputs!AH57 -> 0 | AG24: =+Inputs!AI57 -> 0 | AH24: =+Inputs!AJ57 -> 0 | AI24: =+Inputs!AK57 -> 0
B25: =+Inputs!B48 -> Obra civil y edificación | C25: EUR miles | D25: Constantes | E25: 80 | F25: =+Inputs!H58 -> 0 | G25: =+Inputs!I58 -> 40 | H25: =+Inputs!J58 -> 40 | I25: =+Inputs!K58 -> 0 | J25: =+Inputs!L58 -> 0 | K25: =+Inputs!M58 -> 0 | L25: =+Inputs!N58 -> 0 | M25: =+Inputs!O58 -> 0 | N25: =+Inputs!P58 -> 0 | O25: =+Inputs!Q58 -> 0 | P25: =+Inputs!R58 -> 0 | Q25: =+Inputs!S58 -> 0 | R25: =+Inputs!T58 -> 0 | S25: =+Inputs!U58 -> 0 | T25: =+Inputs!V58 -> 0 | U25: =+Inputs!W58 -> 0 | V25: =+Inputs!X58 -> 0 | W25: =+Inputs!Y58 -> 0 | X25: =+Inputs!Z58 -> 0 | Y25: =+Inputs!AA58 -> 0 | Z25: =+Inputs!AB58 -> 0 | AA25: =+Inputs!AC58 -> 0 | AB25: =+Inputs!AD58 -> 0 | AC25: =+Inputs!AE58 -> 0 | AD25: =+Inputs!AF58 -> 0 | AE25: =+Inputs!AG58 -> 0 | AF25: =+Inputs!AH58 -> 0 | AG25: =+Inputs!AI58 -> 0 | AH25: =+Inputs!AJ58 -> 0 | AI25: =+Inputs!AK58 -> 0
B26: =+Inputs!B49 -> Urbanización | C26: EUR miles | D26: Constantes | E26: 15 | F26: =+Inputs!H59 -> 0 | G26: =+Inputs!I59 -> 7.5 | H26: =+Inputs!J59 -> 7.5 | I26: =+Inputs!K59 -> 0 | J26: =+Inputs!L59 -> 0 | K26: =+Inputs!M59 -> 0 | L26: =+Inputs!N59 -> 0 | M26: =+Inputs!O59 -> 0 | N26: =+Inputs!P59 -> 0 | O26: =+Inputs!Q59 -> 0 | P26: =+Inputs!R59 -> 0 | Q26: =+Inputs!S59 -> 0 | R26: =+Inputs!T59 -> 0 | S26: =+Inputs!U59 -> 0 | T26: =+Inputs!V59 -> 0 | U26: =+Inputs!W59 -> 0 | V26: =+Inputs!X59 -> 0 | W26: =+Inputs!Y59 -> 0 | X26: =+Inputs!Z59 -> 0 | Y26: =+Inputs!AA59 -> 0 | Z26: =+Inputs!AB59 -> 0 | AA26: =+Inputs!AC59 -> 0 | AB26: =+Inputs!AD59 -> 0 | AC26: =+Inputs!AE59 -> 0 | AD26: =+Inputs!AF59 -> 0 | AE26: =+Inputs!AG59 -> 0 | AF26: =+Inputs!AH59 -> 0 | AG26: =+Inputs!AI59 -> 0 | AH26: =+Inputs!AJ59 -> 0 | AI26: =+Inputs!AK59 -> 0
B27: =+Inputs!B50 -> Seguridad y salud | C27: EUR miles | D27: Constantes | E27: 0.1 | F27: =+Inputs!H60 -> 0 | G27: =+Inputs!I60 -> 0.05 | H27: =+Inputs!J60 -> 0.05 | I27: =+Inputs!K60 -> 0 | J27: =+Inputs!L60 -> 0 | K27: =+Inputs!M60 -> 0 | L27: =+Inputs!N60 -> 0 | M27: =+Inputs!O60 -> 0 | N27: =+Inputs!P60 -> 0 | O27: =+Inputs!Q60 -> 0 | P27: =+Inputs!R60 -> 0 | Q27: =+Inputs!S60 -> 0 | R27: =+Inputs!T60 -> 0 | S27: =+Inputs!U60 -> 0 | T27: =+Inputs!V60 -> 0 | U27: =+Inputs!W60 -> 0 | V27: =+Inputs!X60 -> 0 | W27: =+Inputs!Y60 -> 0 | X27: =+Inputs!Z60 -> 0 | Y27: =+Inputs!AA60 -> 0 | Z27: =+Inputs!AB60 -> 0 | AA27: =+Inputs!AC60 -> 0 | AB27: =+Inputs!AD60 -> 0 | AC27: =+Inputs!AE60 -> 0 | AD27: =+Inputs!AF60 -> 0 | AE27: =+Inputs!AG60 -> 0 | AF27: =+Inputs!AH60 -> 0 | AG27: =+Inputs!AI60 -> 0 | AH27: =+Inputs!AJ60 -> 0 | AI27: =+Inputs!AK60 -> 0
B28: =+Inputs!B51 -> Adquisición predial | C28: EUR miles | D28: Constantes | E28: 0 | F28: =+Inputs!H61 -> 0 | G28: =+Inputs!I61 -> 0 | H28: =+Inputs!J61 -> 0 | I28: =+Inputs!K61 -> 0 | J28: =+Inputs!L61 -> 0 | K28: =+Inputs!M61 -> 0 | L28: =+Inputs!N61 -> 0 | M28: =+Inputs!O61 -> 0 | N28: =+Inputs!P61 -> 0 | O28: =+Inputs!Q61 -> 0 | P28: =+Inputs!R61 -> 0 | Q28: =+Inputs!S61 -> 0 | R28: =+Inputs!T61 -> 0 | S28: =+Inputs!U61 -> 0 | T28: =+Inputs!V61 -> 0 | U28: =+Inputs!W61 -> 0 | V28: =+Inputs!X61 -> 0 | W28: =+Inputs!Y61 -> 0 | X28: =+Inputs!Z61 -> 0 | Y28: =+Inputs!AA61 -> 0 | Z28: =+Inputs!AB61 -> 0 | AA28: =+Inputs!AC61 -> 0 | AB28: =+Inputs!AD61 -> 0 | AC28: =+Inputs!AE61 -> 0 | AD28: =+Inputs!AF61 -> 0 | AE28: =+Inputs!AG61 -> 0 | AF28: =+Inputs!AH61 -> 0 | AG28: =+Inputs!AI61 -> 0 | AH28: =+Inputs!AJ61 -> 0 | AI28: =+Inputs!AK61 -> 0
B29: =+Inputs!B52 -> Gestión de residuos de construcción | C29: EUR miles | D29: Constantes | E29: 12 | F29: =+Inputs!H62 -> 0 | G29: =+Inputs!I62 -> 6 | H29: =+Inputs!J62 -> 6 | I29: =+Inputs!K62 -> 0 | J29: =+Inputs!L62 -> 0 | K29: =+Inputs!M62 -> 0 | L29: =+Inputs!N62 -> 0 | M29: =+Inputs!O62 -> 0 | N29: =+Inputs!P62 -> 0 | O29: =+Inputs!Q62 -> 0 | P29: =+Inputs!R62 -> 0 | Q29: =+Inputs!S62 -> 0 | R29: =+Inputs!T62 -> 0 | S29: =+Inputs!U62 -> 0 | T29: =+Inputs!V62 -> 0 | U29: =+Inputs!W62 -> 0 | V29: =+Inputs!X62 -> 0 | W29: =+Inputs!Y62 -> 0 | X29: =+Inputs!Z62 -> 0 | Y29: =+Inputs!AA62 -> 0 | Z29: =+Inputs!AB62 -> 0 | AA29: =+Inputs!AC62 -> 0 | AB29: =+Inputs!AD62 -> 0 | AC29: =+Inputs!AE62 -> 0 | AD29: =+Inputs!AF62 -> 0 | AE29: =+Inputs!AG62 -> 0 | AF29: =+Inputs!AH62 -> 0 | AG29: =+Inputs!AI62 -> 0 | AH29: =+Inputs!AJ62 -> 0 | AI29: =+Inputs!AK62 -> 0
B30: =+Inputs!B53 -> Interferencia en Redes | C30: EUR miles | D30: Constantes | E30: =+SUM(F30:AI30) -> 0 | F30: =+Inputs!H63 -> 0 | G30: =+Inputs!I63 -> 0 | H30: =+Inputs!J63 -> 0 | I30: =+Inputs!K63 -> 0 | J30: =+Inputs!L63 -> 0 | K30: =+Inputs!M63 -> 0 | L30: =+Inputs!N63 -> 0 | M30: =+Inputs!O63 -> 0 | N30: =+Inputs!P63 -> 0 | O30: =+Inputs!Q63 -> 0 | P30: =+Inputs!R63 -> 0 | Q30: =+Inputs!S63 -> 0 | R30: =+Inputs!T63 -> 0 | S30: =+Inputs!U63 -> 0 | T30: =+Inputs!V63 -> 0 | U30: =+Inputs!W63 -> 0 | V30: =+Inputs!X63 -> 0 | W30: =+Inputs!Y63 -> 0 | X30: =+Inputs!Z63 -> 0 | Y30: =+Inputs!AA63 -> 0 | Z30: =+Inputs!AB63 -> 0 | AA30: =+Inputs!AC63 -> 0 | AB30: =+Inputs!AD63 -> 0 | AC30: =+Inputs!AE63 -> 0 | AD30: =+Inputs!AF63 -> 0 | AE30: =+Inputs!AG63 -> 0 | AF30: =+Inputs!AH63 -> 0 | AG30: =+Inputs!AI63 -> 0 | AH30: =+Inputs!AJ63 -> 0 | AI30: =+Inputs!AK63 -> 0
B31: CAPEX | C31: EUR miles | D31: Constantes | E31: =+SUM(F31:AI31) -> 227.1 | F31: =+SUM(F24:F30) -> 60 | G31: =+SUM(G24:G30) -> 101.55 | H31: 65.55 | I31: 0 | J31: 0 | K31: 0 | L31: 0 | M31: 0 | N31: 0 | O31: 0 | P31: 0 | Q31: 0 | R31: 0 | S31: 0 | T31: 0 | U31: 0 | V31: 0 | W31: 0 | X31: 0 | Y31: 0 | Z31: 0 | AA31: 0 | AB31: 0 | AC31: 0 | AD31: 0 | AE31: 0 | AF31: 0 | AG31: 0 | AH31: 0 | AI31: 0
D32: VAN | E32: =+NPV($D$17,F31:AI31) -> 205.0681453
E33: Total
B35: =+Inputs!B72 -> Xxxx | D35: Constantes | E35: =+SUM(F35:AI35) -> 374 | F35: =+Inputs!H72 -> 0 | G35: =+Inputs!I72 -> 0 | H35: =+Inputs!J72 -> 0 | I35: =+Inputs!K72 -> 17 | J35: =+Inputs!L72 -> 17 | K35: =+Inputs!M72 -> 17 | L35: =+Inputs!N72 -> 17 | M35: =+Inputs!O72 -> 17 | N35: =+Inputs!P72 -> 17 | O35: =+Inputs!Q72 -> 17 | P35: =+Inputs!R72 -> 17 | Q35: =+Inputs!S72 -> 17 | R35: =+Inputs!T72 -> 17 | S35: =+Inputs!U72 -> 17 | T35: =+Inputs!V72 -> 17 | U35: =+Inputs!W72 -> 17 | V35: =+Inputs!X72 -> 17 | W35: =+Inputs!Y72 -> 17 | X35: =+Inputs!Z72 -> 17 | Y35: =+Inputs!AA72 -> 17 | Z35: =+Inputs!AB72 -> 17 | AA35: =+Inputs!AC72 -> 17 | AB35: =+Inputs!AD72 -> 17 | AC35: =+Inputs!AE72 -> 17 | AD35: =+Inputs!AF72 -> 17 | AE35: =+Inputs!AG72 -> 0 | AF35: =+Inputs!AH72 -> 0 | AG35: =+Inputs!AI72 -> 0 | AH35: =+Inputs!AJ72 -> 0 | AI35: =+Inputs!AK72 -> 0
B36: OPEX | D36: Constantes | E36: =+SUM(F36:AI36) -> 374 | F36: =+SUM(F35:F35) -> 0 | G36: 0 | H36: 0 | I36: 17 | J36: 17 | K36: 17 | L36: 17 | M36: 17 | N36: 17 | O36: 17 | P36: 17 | Q36: 17 | R36: 17 | S36: 17 | T36: 17 | U36: 17 | V36: 17 | W36: 17 | X36: 17 | Y36: 17 | Z36: 17 | AA36: 17 | AB36: 17 | AC36: 17 | AD36: 17 | AE36: 0 | AF36: 0 | AG36: 0 | AH36: 0 | AI36: 0
D37: VAN | E37: =+NPV($D$17,F36:AI36) -> 188.5879034
B39: =+Inputs!B81 -> Xxxx | D39: Constantes | E39: =+SUM(F39:AI39) -> 80 | F39: =+Inputs!H81 -> 0 | G39: =+Inputs!I81 -> 0 | H39: =+Inputs!J81 -> 0 | I39: =+Inputs!K81 -> 0 | J39: =+Inputs!L81 -> 0 | K39: =+Inputs!M81 -> 0 | L39: =+Inputs!N81 -> 0 | M39: =+Inputs!O81 -> 20 | N39: =+Inputs!P81 -> 0 | O39: =+Inputs!Q81 -> 0 | P39: =+Inputs!R81 -> 0 | Q39: =+Inputs!S81 -> 0 | R39: =+Inputs!T81 -> 20 | S39: =+Inputs!U81 -> 0 | T39: =+Inputs!V81 -> 0 | U39: =+Inputs!W81 -> 0 | V39: =+Inputs!X81 -> 0 | W39: =+Inputs!Y81 -> 20 | X39: =+Inputs!Z81 -> 0 | Y39: =+Inputs!AA81 -> 0 | Z39: =+Inputs!AB81 -> 0 | AA39: =+Inputs!AC81 -> 0 | AB39: =+Inputs!AD81 -> 20 | AC39: =+Inputs!AE81 -> 0 | AD39: =+Inputs!AF81 -> 0 | AE39: =+Inputs!AG81 -> 0 | AF39: =+Inputs!AH81 -> 0 | AG39: =+Inputs!AI81 -> 0 | AH39: =+Inputs!AJ81 -> 0 | AI39: =+Inputs!AK81 -> 0
B40: Mantenimiento Mayor | D40: Constantes | E40: =+SUM(F40:AI40) -> 80 | F40: =+SUM(F39:F39) -> 0 | G40: =+SUM(G39:G39) -> 0 | H40: 0 | I40: 0 | J40: 0 | K40: 0 | L40: 0 | M40: 20 | N40: 0 | O40: 0 | P40: 0 | Q40: 0 | R40: 20 | S40: 0 | T40: 0 | U40: 0 | V40: 0 | W40: 20 | X40: 0 | Y40: 0 | Z40: 0 | AA40: 0 | AB40: 20 | AC40: 0 | AD40: 0 | AE40: 0 | AF40: 0 | AG40: 0 | AH40: 0 | AI40: 0
D41: VAN | E41: =+NPV($D$17,F40:AI40) -> 37.9075026
B43: Resumen Costo Base del Proyecto | E43: Total
B44: =+B31 -> CAPEX | D44: VAN | E44: =+E32 -> 205.0681453
B45: =+B36 -> OPEX | D45: VAN | E45: =+E37 -> 188.5879034
B46: =+B40 -> Mantenimiento Mayor | D46: VAN | E46: =+E41 -> 37.9075026
B47: Total | D47: VAN | E47: =+SUM(E44:E46) -> 431.5635513
B50: Valoración de riesgos transferidos
B53: =+Inputs!$B$148 -> Adquisición Equipos
E54: Total
B56: =+B53 -> Adquisición Equipos | D56: Constantes | E56: =+SUM(F56:AI56) -> 120 | F56: =+F24 -> 60 | G56: =+G24 -> 48 | H56: 12 | I56: 0 | J56: 0 | K56: 0 | L56: 0 | M56: 0 | N56: 0 | O56: 0 | P56: 0 | Q56: 0 | R56: 0 | S56: 0 | T56: 0 | U56: 0 | V56: 0 | W56: 0 | X56: 0 | Y56: 0 | Z56: 0 | AA56: 0 | AB56: 0 | AC56: 0 | AD56: 0 | AE56: 0 | AF56: 0 | AG56: 0 | AH56: 0 | AI56: 0
B57: Costo Riesgo Adquisición Equipos | C57: =+Inputs!$D$148 -> 0.1 | D57: Constantes | E57: =+SUM(F57:AI57) -> 9.6 | F57: =+$C57*F56*Inputs!$D$144 -> 4.8 | G57: =+$C57*G56*Inputs!$D$144 -> 3.84 | H57: =+$C57*H56*Inputs!$D$144 -> 0.96 | I57: =+$C57*I56*Inputs!$D$144 -> 0 | J57: =+$C57*J56*Inputs!$D$144 -> 0 | K57: =+$C57*K56*Inputs!$D$144 -> 0 | L57: =+$C57*L56*Inputs!$D$144 -> 0 | M57: =+$C57*M56*Inputs!$D$144 -> 0 | N57: =+$C57*N56*Inputs!$D$144 -> 0 | O57: =+$C57*O56*Inputs!$D$144 -> 0 | P57: =+$C57*P56*Inputs!$D$144 -> 0 | Q57: =+$C57*Q56*Inputs!$D$144 -> 0 | R57: =+$C57*R56*Inputs!$D$144 -> 0 | S57: =+$C57*S56*Inputs!$D$144 -> 0 | T57: =+$C57*T56*Inputs!$D$144 -> 0 | U57: =+$C57*U56*Inputs!$D$144 -> 0 | V57: =+$C57*V56*Inputs!$D$144 -> 0 | W57: =+$C57*W56*Inputs!$D$144 -> 0 | X57: =+$C57*X56*Inputs!$D$144 -> 0 | Y57: =+$C57*Y56*Inputs!$D$144 -> 0 | Z57: =+$C57*Z56*Inputs!$D$144 -> 0 | AA57: =+$C57*AA56*Inputs!$D$144 -> 0 | AB57: =+$C57*AB56*Inputs!$D$144 -> 0 | AC57: =+$C57*AC56*Inputs!$D$144 -> 0 | AD57: =+$C57*AD56*Inputs!$D$144 -> 0 | AE57: =+$C57*AE56*Inputs!$D$144 -> 0 | AF57: =+$C57*AF56*Inputs!$D$144 -> 0 | AG57: =+$C57*AG56*Inputs!$D$144 -> 0 | AH57: =+$C57*AH56*Inputs!$D$144 -> 0 | AI57: =+$C57*AI56*Inputs!$D$144 -> 0
B58: VAN riesgo Adquisición Equipos | D58: VAN | E58: =+NPV($D$17,F57:AI57) -> 8.856133561
B60: =+Inputs!$B$150 -> Costrucción
E61: Total
B63: =+B60 -> Costrucción | D63: Constantes | E63: =+SUM(F63:AI63) -> 107.1 | F63: =+SUM(F25:F27,F29) -> 0 | G63: =+SUM(G25:G27,G29) -> 53.55 | H63: 53.55 | I63: 0 | J63: 0 | K63: 0 | L63: 0 | M63: 0 | N63: 0 | O63: 0 | P63: 0 | Q63: 0 | R63: 0 | S63: 0 | T63: 0 | U63: 0 | V63: 0 | W63: 0 | X63: 0 | Y63: 0 | Z63: 0 | AA63: 0 | AB63: 0 | AC63: 0 | AD63: 0 | AE63: 0 | AF63: 0 | AG63: 0 | AH63: 0 | AI63: 0
B64: Costo Riesgo Gestión de residuos de construcción | C64: =+Inputs!$D$150 -> 0.1 | D64: Constantes | E64: =+SUM(F64:AI64) -> 10.71 | F64: =+$C64*F63 -> 0 | G64: =+$C64*G63 -> 5.355 | H64: 5.355 | I64: 0 | J64: 0 | K64: 0 | L64: 0 | M64: 0 | N64: 0 | O64: 0 | P64: 0 | Q64: 0 | R64: 0 | S64: 0 | T64: 0 | U64: 0 | V64: 0 | W64: 0 | X64: 0 | Y64: 0 | Z64: 0 | AA64: 0 | AB64: 0 | AC64: 0 | AD64: 0 | AE64: 0 | AF64: 0 | AG64: 0 | AH64: 0 | AI64: 0
B65: VAN riesgo gestión de residuos de construcción | D65: VAN | E65: =+NPV($D$17,F64:AI64) -> 9.436647578
B67: =+Inputs!$B$152 -> Operación y Mantenimiento
E68: Total
B70: =+B67 -> Operación y Mantenimiento | D70: Constantes | E70: =+SUM(F70:AI70) -> 454 | F70: =+F36+F40 -> 0 | G70: 0 | H70: 0 | I70: 17 | J70: 17 | K70: 17 | L70: 17 | M70: 37 | N70: 17 | O70: 17 | P70: 17 | Q70: 17 | R70: 37 | S70: 17 | T70: 17 | U70: 17 | V70: 17 | W70: 37 | X70: 17 | Y70: 17 | Z70: 17 | AA70: 17 | AB70: 37 | AC70: 17 | AD70: 17 | AE70: 0 | AF70: 0 | AG70: 0 | AH70: 0 | AI70: 0
B71: Costo Riesgo Operación y Mantenimiento | C71: =+Inputs!$D$152 -> 0.1 | D71: Constantes | E71: =+SUM(F71:AI71) -> 45.4 | F71: =+$C71*F70 -> 0 | G71: =+$C71*G70 -> 0 | H71: 0 | I71: 1.7 | J71: 1.7 | K71: 1.7 | L71: 1.7 | M71: 3.7 | N71: 1.7 | O71: 1.7 | P71: 1.7 | Q71: 1.7 | R71: 3.7 | S71: 1.7 | T71: 1.7 | U71: 1.7 | V71: 1.7 | W71: 3.7 | X71: 1.7 | Y71: 1.7 | Z71: 1.7 | AA71: 1.7 | AB71: 3.7 | AC71: 1.7 | AD71: 1.7 | AE71: 0 | AF71: 0 | AG71: 0 | AH71: 0 | AI71: 0
B72: VAN riesgo Operación y Mantenimiento | D72: VAN | E72: =+NPV($D$17,F71:AI71) -> 22.6495406
B74: Ingresos de Terceras fuentes
B77: Ingresos de Demanda
E78: Total
B80: =+B77 -> Ingresos de Demanda | D80: Constantes | E80: =+SUM(F80:AI80) -> 0 | F80: =+Inputs!H95 -> 0 | G80: =+Inputs!I95 -> 0 | H80: =+Inputs!J95 -> 0 | I80: =+Inputs!K95 -> 0 | J80: =+Inputs!L95 -> 0 | K80: =+Inputs!M95 -> 0 | L80: =+Inputs!N95 -> 0 | M80: =+Inputs!O95 -> 0 | N80: =+Inputs!P95 -> 0 | O80: =+Inputs!Q95 -> 0 | P80: =+Inputs!R95 -> 0 | Q80: =+Inputs!S95 -> 0 | R80: =+Inputs!T95 -> 0 | S80: =+Inputs!U95 -> 0 | T80: =+Inputs!V95 -> 0 | U80: =+Inputs!W95 -> 0 | V80: =+Inputs!X95 -> 0 | W80: =+Inputs!Y95 -> 0 | X80: =+Inputs!Z95 -> 0 | Y80: =+Inputs!AA95 -> 0 | Z80: =+Inputs!AB95 -> 0 | AA80: =+Inputs!AC95 -> 0 | AB80: =+Inputs!AD95 -> 0 | AC80: =+Inputs!AE95 -> 0 | AD80: =+Inputs!AF95 -> 0 | AE80: =+Inputs!AG95 -> 0 | AF80: =+Inputs!AH95 -> 0 | AG80: =+Inputs!AI95 -> 0 | AH80: =+Inputs!AJ95 -> 0 | AI80: =+Inputs!AK95 -> 0
B81: VAN Ingresos Venta de Energía | D81: VAN | E81: =+NPV($D$17,F80:AI80) -> 0
B86: Ingresos de Venta de Energía
E87: Total
B89: =+B86 -> Ingresos de Venta de Energía | D89: Constantes | E89: =+SUM(F89:AI89) -> 0.8179704 | F89: =+Inputs!H104 -> 0 | G89: =+Inputs!I104 -> 0 | H89: =+Inputs!J104 -> 0 | I89: =+Inputs!K104 -> 0.01211808 | J89: =+Inputs!L104 -> 0.0201968 | K89: =+Inputs!M104 -> 0.02625584 | L89: =+Inputs!N104 -> 0.03231488 | M89: =+Inputs!O104 -> 0.0403936 | N89: =+Inputs!P104 -> 0.0403936 | O89: =+Inputs!Q104 -> 0.0403936 | P89: =+Inputs!R104 -> 0.0403936 | Q89: =+Inputs!S104 -> 0.0403936 | R89: =+Inputs!T104 -> 0.0403936 | S89: =+Inputs!U104 -> 0.0403936 | T89: =+Inputs!V104 -> 0.0403936 | U89: =+Inputs!W104 -> 0.0403936 | V89: =+Inputs!X104 -> 0.0403936 | W89: =+Inputs!Y104 -> 0.0403936 | X89: =+Inputs!Z104 -> 0.0403936 | Y89: =+Inputs!AA104 -> 0.0403936 | Z89: =+Inputs!AB104 -> 0.0403936 | AA89: =+Inputs!AC104 -> 0.0403936 | AB89: =+Inputs!AD104 -> 0.0403936 | AC89: =+Inputs!AE104 -> 0.0403936 | AD89: =+Inputs!AF104 -> 0.0403936 | AE89: =+Inputs!AG104 -> 0 | AF89: =+Inputs!AH104 -> 0 | AG89: =+Inputs!AI104 -> 0 | AH89: =+Inputs!AJ104 -> 0 | AI89: =+Inputs!AK104 -> 0
B90: VAN Ingresos Venta de Energía | D90: VAN | E90: =+NPV($D$17,F89:AI89) -> 0.3932644874
B92: Resultado CSP
B93: Concepto (millones de EUR)
B94: Costes de inversión | C94: =+E44 -> 205.0681453
B95: Costes de operación y mantenimiento | C95: =+E45 -> 188.5879034
B96: Costes de reposiciones | C96: =+E46 -> 37.9075026
B97: Coste base | C97: =+SUM(C94:C96) -> 431.5635513
B98: Coste riesgos transferidos | C98: =+$E$58+$E$65+$E$72 -> 40.94232174
B99: Ingresos terceros | C99: =+-$E$90-$E$81 -> -0.3932644874
B100: Neutralidad competitiva | C100: =+E119 -> 45.68538885
B101: Costes Administración de Contrato | C101: =+$E$124 -> 12.21283759
B102: Coste CSP | C102: =+C97+C98+C99+C100+C101 -> 530.010835
B104: Concesión
B107: PPD + PPT | D107: Constantes | E107: =+SUM(F107:AI107) -> 910.179704 | F107: =+(Inputs!H126+Inputs!H116) -> 0 | G107: =+(Inputs!I126+Inputs!I116) -> 0 | H107: =+(Inputs!J126+Inputs!J116) -> 0 | I107: =+(Inputs!K126+Inputs!K116) -> 41.1211808 | J107: =+(Inputs!L126+Inputs!L116) -> 41.201968 | K107: =+(Inputs!M126+Inputs!M116) -> 41.2625584 | L107: =+(Inputs!N126+Inputs!N116) -> 41.3231488 | M107: =+(Inputs!O126+Inputs!O116) -> 41.403936 | N107: =+(Inputs!P126+Inputs!P116) -> 41.403936 | O107: =+(Inputs!Q126+Inputs!Q116) -> 41.403936 | P107: =+(Inputs!R126+Inputs!R116) -> 41.403936 | Q107: =+(Inputs!S126+Inputs!S116) -> 41.403936 | R107: =+(Inputs!T126+Inputs!T116) -> 41.403936 | S107: =+(Inputs!U126+Inputs!U116) -> 41.403936 | T107: =+(Inputs!V126+Inputs!V116) -> 41.403936 | U107: =+(Inputs!W126+Inputs!W116) -> 41.403936 | V107: =+(Inputs!X126+Inputs!X116) -> 41.403936 | W107: =+(Inputs!Y126+Inputs!Y116) -> 41.403936 | X107: =+(Inputs!Z126+Inputs!Z116) -> 41.403936 | Y107: =+(Inputs!AA126+Inputs!AA116) -> 41.403936 | Z107: =+(Inputs!AB126+Inputs!AB116) -> 41.403936 | AA107: =+(Inputs!AC126+Inputs!AC116) -> 41.403936 | AB107: =+(Inputs!AD126+Inputs!AD116) -> 41.403936 | AC107: =+(Inputs!AE126+Inputs!AE116) -> 41.403936 | AD107: =+(Inputs!AF126+Inputs!AF116) -> 41.403936 | AE107: =+(Inputs!AG126+Inputs!AG116) -> 0 | AF107: =+(Inputs!AH126+Inputs!AH116) -> 0 | AG107: =+(Inputs!AI126+Inputs!AI116) -> 0 | AH107: =+(Inputs!AJ126+Inputs!AJ116) -> 0 | AI107: =+(Inputs!AK126+Inputs!AK116) -> 0
B108: Impuestos | D108: Constantes | E108: =+SUM(F108:AI108) -> 75.461179 | F108: =+Inputs!H137 -> 0.6500784694 | G108: =+Inputs!I137 -> 2.430163569 | H108: =+Inputs!J137 -> 4.377917571 | I108: =+Inputs!K137 -> 5.098910275 | J108: =+Inputs!L137 -> 4.913437562 | K108: =+Inputs!M137 -> 4.714174474 | L108: =+Inputs!N137 -> 4.500455523 | M108: =+Inputs!O137 -> 4.487787852 | N108: =+Inputs!P137 -> 4.469099267 | O108: =+Inputs!Q137 -> 4.236745071 | P108: =+Inputs!R137 -> 3.989201942 | Q108: =+Inputs!S137 -> 3.725476985 | R108: =+Inputs!T137 -> 3.66120522 | S108: =+Inputs!U137 -> 3.588483149 | T108: =+Inputs!V137 -> 3.298563311 | U108: =+Inputs!W137 -> 2.989691489 | V108: =+Inputs!X137 -> 2.660628799 | W108: =+Inputs!Y137 -> 2.526748191 | X108: =+Inputs!Z137 -> 2.379866965 | Y108: =+Inputs!AA137 -> 2.010940207 | Z108: =+Inputs!AB137 -> 1.617896806 | AA108: =+Inputs!AC137 -> 1.199160261 | AB108: =+Inputs!AD137 -> 0.9697438429 | AC108: =+Inputs!AE137 -> 0.7210816555 | AD108: =+Inputs!AF137 -> 0.2437205426 | AE108: =+Inputs!AG114 -> 0 | AF108: =+Inputs!AH114 -> 0 | AG108: =+Inputs!AI114 -> 0 | AH108: =+Inputs!AJ114 -> 0 | AI108: =+Inputs!AK114 -> 0
B109: Costes Administración de Contrato | C109: =950000/1000000 -> 0.95 | D109: Constantes | E109: =+SUM(F109:AI109) -> 22.8 | F109: =+$C109*SUM(F10:F11) -> 0 | G109: 0.95 | H109: 0.95 | I109: 0.95 | J109: 0.95 | K109: 0.95 | L109: 0.95 | M109: 0.95 | N109: 0.95 | O109: 0.95 | P109: 0.95 | Q109: 0.95 | R109: 0.95 | S109: 0.95 | T109: 0.95 | U109: 0.95 | V109: 0.95 | W109: 0.95 | X109: 0.95 | Y109: 0.95 | Z109: 0.95 | AA109: 0.95 | AB109: 0.95 | AC109: 0.95 | AD109: 0.95 | AE109: 0 | AF109: 0 | AG109: 0 | AH109: 0 | AI109: 0
B111: Aportes públicos
B113: PPD + PPT | D113: Constantes | E113: =+SUM(F113:AI113) -> 910.179704 | F113: =+F107 -> 0 | G113: 0 | H113: 0 | I113: 41.1211808 | J113: 41.201968 | K113: 41.2625584 | L113: 41.3231488 | M113: 41.403936 | N113: 41.403936 | O113: 41.403936 | P113: 41.403936 | Q113: 41.403936 | R113: 41.403936 | S113: 41.403936 | T113: 41.403936 | U113: 41.403936 | V113: 41.403936 | W113: 41.403936 | X113: 41.403936 | Y113: 41.403936 | Z113: 41.403936 | AA113: 41.403936 | AB113: 41.403936 | AC113: 41.403936 | AD113: 41.403936 | AE113: 0 | AF113: 0 | AG113: 0 | AH113: 0 | AI113: 0
B114: VAN PPD + PPT | D114: VAN | E114: =+NPV($D$17,F113:AI113) -> 458.7622943
B116: Ahorro fiscal
B118: Impuestos | D118: Constantes | E118: =+SUM(F118:AI118) -> 75.461179 | F118: =+F108 -> 0.6500784694 | G118: 2.430163569 | H118: 4.377917571 | I118: 5.098910275 | J118: 4.913437562 | K118: 4.714174474 | L118: 4.500455523 | M118: 4.487787852 | N118: 4.469099267 | O118: 4.236745071 | P118: 3.989201942 | Q118: 3.725476985 | R118: 3.66120522 | S118: 3.588483149 | T118: 3.298563311 | U118: 2.989691489 | V118: 2.660628799 | W118: 2.526748191 | X118: 2.379866965 | Y118: 2.010940207 | Z118: 1.617896806 | AA118: 1.199160261 | AB118: 0.9697438429 | AC118: 0.7210816555 | AD118: 0.2437205426 | AE118: 0 | AF118: 0 | AG118: 0 | AH118: 0 | AI118: 0
B119: VAN ahorro fiscal | D119: VAN | E119: =+NPV($D$17,F118:AI118) -> 45.68538885
B121: Administración del contrato
B123: Costes de administración | D123: Constantes | E123: =+SUM(F123:AI123) -> 22.8 | F123: =+F109 -> 0 | G123: 0.95 | H123: 0.95 | I123: 0.95 | J123: 0.95 | K123: 0.95 | L123: 0.95 | M123: 0.95 | N123: 0.95 | O123: 0.95 | P123: 0.95 | Q123: 0.95 | R123: 0.95 | S123: 0.95 | T123: 0.95 | U123: 0.95 | V123: 0.95 | W123: 0.95 | X123: 0.95 | Y123: 0.95 | Z123: 0.95 | AA123: 0.95 | AB123: 0.95 | AC123: 0.95 | AD123: 0.95 | AE123: 0 | AF123: 0 | AG123: 0 | AH123: 0 | AI123: 0
B124: VAN costes de administración | D124: VAN | E124: =+NPV($D$17,F123:AI123) -> 12.21283759
B126: Resultado Concesión
B127: Concepto (millones de EUR)
B128: Aportes públicos | C128: =+E114 -> 458.7622943
B129: Coste aportes públicos | C129: =+SUM(C128:C128) -> 458.7622943
B130: Coste de administración | C130: =+E124 -> 12.21283759
B131: Coste de administración | C131: =+SUM(C130) -> 12.21283759
B132: Coste ajustado concesión | C132: =+C131+C129 -> 470.9751319
B135: Resultado Análisis para el Criterio 2. Potencial de transferencia del riesgo y nivel de coste - efectividad general esperado para proyectos de mayor tamaño.
B136: Concepto (millones de EUR)
B137: CSP | C137: =+C102 -> 530.010835
B138: Concesión | C138: =+C132 -> 470.9751319
B139: VpD cuantitativo | C139: =+C137-C138 -> 59.03570311
B140: VPD/CSP | C140: =+C139/C137 -> 0.111385842
B143: Resumen General
B145: Cálculo CSP
B146: =+B97 -> Coste base | C146: =+C97 -> 431.5635513
B147: Costes de administración | C147: =+C130 -> 12.21283759
B148: Coste riesgos transferidos | C148: =+C98 -> 40.94232174
B149: =+B99 -> Ingresos terceros | C149: =+C99 -> -0.3932644874
B150: Neutralidad competitiva | C150: =+C100 -> 45.68538885
B151: Coste ajustado CSP | C151: =+SUM(C146:C150) -> 530.010835
B153: Cálculo Concesión
B154: =+B129 -> Coste aportes públicos | C154: =+C129 -> 458.7622943
B155: =+B131 -> Coste de administración | C155: =+C131 -> 12.21283759
B156: =+B132 -> Coste ajustado concesión | C156: =+SUM(C154:C155) -> 470.9751319
B158: Valor por Dinero
B159: VpD | C159: =+C151-C156 -> 59.03570311
B160: VPD/CSP | C160: =+C140 -> 0.111385842
B163: Nota: En el caso de proyectos con un importe de inversión igual o superior a 100 milloned de euros, el análisis del potencial de transferencia del riesgo se basará en el resultado del ejercicio del Comparador Público - Privado (CPP): La evaluación del Criterio 2. Potencial de transferencia eficiente del riesgo y nivel de coste-efectividad general esperado se dará la siguiente puntuación: 1 - (No cumple) - VpD negativo en más de un -10% 2 - (Medio) - VpD entre 0% y - 10% 3 - (Alto) - VpD mayor a 0% El resultado se añadirá al análisis Multicriterio (MCA)
B179: Sensibilidades
B181: Sensibilidades
B182: Sensibilidad CAPEX | C182: -0.1 | D182: 0 | E182: 0.1
B183: VpD | C183: 0.02225767686 | D183: 0.05543334048 | E183: 0.08632055491
B184: Sensiiblidad TIR | C184: -0.1 | D184: 0 | E184: 0.1
B185: VpD | C185: 0.08785420102 | D185: 0.05543334048 | E185: 0.008173878201
B187: Nota: De acuerdo con las recomendaciones de la guía, para el análisis de sensibilidad se deberá aplicar una variación del +10% y -10% sobre el Capex del proyecto. Estas sensibilidades deberán calcularse incorporando directamente los inputs correspondientes en el modelo financiero, y los resultados obtenidos delVpD deberán registrarse en la tabla facilitada.
B222: Concepto | C222: Total | D222: VAN
B223: Costes de inversión (CAPEX) | C223: =+$E$31 -> 227.1 | D223: =+$E44 -> 205.0681453
B224: Costes de operación y mantenimiento (OPEX) | C224: =+E36 -> 374 | D224: =+$E45 -> 188.5879034
B225: Costes Mantenimiento Mayor (Mantenimiento Periódico) | C225: =+E40 -> 80 | D225: =+$E46 -> 37.9075026
B226: Total | C226: =+SUM(C223:C225) -> 681.1 | D226: =+SUM(D223:D225) -> 431.5635513
